Workbook

Sheet INPUT
A1: TEST PERIOD WITH RIDERS
A2: Updated MAY 2018
A3: Input Areas in Grey
B4: 12 MONTHS FORECASTED | D4: INCLUDES ALL RIDERS
B6: DUKE ENERGY KENTUCKY
B7: CASE NO. 2018- 00261
B8: AUTOMATED RATE CASE FILING SYSTEM
B9: FOR THE TWELVE MONTHS ENDED MARCH 31, 2020
B11: TYPE OF SERVICE: | C11: (GAS SERVICE)
B12: DATA: ___ BASE PERIOD _X_FORECASTED PERIOD
B13: TYPE OF FILING: _X_ ORIGINAL ___UPDATED ___ REVISED
B15: CURRENT RATES: | F15: @DEC2017 | G15: @JAN2018 | H15: @FEB2018 | I15: @MAR2018 | J15: @APR2018 | K15: @MAY2018 | L15: @JUN2018
B16: GAS COST ADJUSTMENT(2): | C16: =L16 -> 3.999 | D16: $ PER MCF | F16: 4.243 | G16: 4.032 | H16: 4.021 | I16: 3.977 | J16: 3.906 | K16: 3.842 | L16: 3.999
B17: EXPECTED GAS COST(1): | C17: =L17 -> 4.0143 | D17: $ PER MCF | E17: AVG ANNUALIZED | L17: 4.0143
B18: WITNESS: | C18: B. L. Sailers
B20: (1) Based upon Normalized Volumes for Test Period
B21: (2) GCA @ June 2018:
B22: EGC | C22: 3.759 | D22: @JUNE 2018 | E22: UPDATED MONTHLY
B23: RA | C23: -0.017 | D23: @JUNE 2018
B24: AA | C24: 0.232 | D24: @JUNE 2018
B25: BA | C25: 0.025 | D25: @JUNE 2018
B26: Total GCA | C26: =SUM(C22:C25) -> 3.999 | E26: UPDATED MONTHLY
B28: Rider DSMR: | C28: Current | D28: Proposed
B29: Rate RS (HEA) | C29: 0.1 | D29: 0.1 | E29: MONTHLY CHARGE Thru December 2020
B30: Rate RS | C30: -0.39792 | D30: =C30 -> -0.39792 | E30: $ per MCF | F30: RATE EFFECTIVE February 14, 2018
B31: Rate GS | C31: 0 | D31: =C31 -> 0 | E31: $ per MCF
B35: Rider GCAT: | C35: Current | D35: Proposed
B36: Rate FT-L | C36: 0 | D36: 0 | E36: $ per MCF | F36: JUN 2018 - AUG 2018 updated quarterly
B38: Interdepartmental Rates | C38: Current | D38: Proposed
B39: Customer Charge | E39: $ per MCF | F39: Not used
B42: Rider ASRP: | C42: Current | D42: Proposed
B43: Rate RS | C43: 1.8 | D43: 0 | E43: $ per Month | F43: Beginning January 2018, updated annually
B44: Rate GS | C44: 1.78 | D44: 0 | E44: $ per Month
B45: Rate DGS | C45: 0.0045 | D45: 0 | E45: $ per MCF
B46: Rate FT-L | C46: 0.0045 | D46: 0 | E46: $ per MCF
B47: Rate IT | C47: 0.0039 | D47: 0 | E47: $ per MCF
B48: Rate SSIT | C48: 0.0039 | D48: 0 | E48: $ per MCF
B50: Rate RS: | C50: Current | D50: Proposed
B51: Customer Charge | C51: 16 | D51: ='Proposed Rates'!C14 -> 17.5 | E51: $ per Month
B52: Delivery Rate | C52: 3.7213 | D52: ='Proposed Rates'!C20 -> 4.8677 | E52: $ per MCF
B54: Rate GS: | C54: Current | D54: Proposed
B55: Customer Charge | C55: 47.5 | D55: ='Proposed Rates'!G14 -> 50 | E55: $ per Month
B56: Delivery Rate | C56: 2.053 | D56: ='Proposed Rates'!G20 -> 2.8077 | E56: $ per MCF
B58: Rate FT-L: | C58: Current | D58: Proposed
B59: Administrative Charge | C59: 430 | D59: ='Proposed Rates'!K14 -> 430 | E59: $ per Month
B60: Delivery Rate | C60: 1.7369 | D60: ='Proposed Rates'!K20 -> 2.3319 | E60: $ per MCF
B62: Rate IT: | C62: Current | D62: Proposed
B63: Administrative Charge | C63: 430 | D63: ='Proposed Rates'!O14 -> 430 | E63: $ per Month
B64: Commodity Charge | C64: 0.9493 | D64: ='Proposed Rates'!O20 -> 1.0369 | E64: $ per MCF

Sheet PRINT
B6: SCHEDULE M-2.2 (CURRENT RATES) | L6: SCHEDULE M-2.3 (PROPOSED RATES)

Sheet SCH M
A1: =COMPANY -> DUKE ENERGY KENTUCKY
A2: =CASE -> CASE NO. 2018- 00261
A3: REVENUES AT PRESENT AND PROPOSED RATES
A4: =TIME_PERIOD -> FOR THE TWELVE MONTHS ENDED MARCH 31, 2020
A5: =SERV_TYPE -> (GAS SERVICE)
A7: =DATA_TYPE -> DATA: ___ BASE PERIOD _X_FORECASTED PERIOD | K7: SCHEDULE M
A8: =FILING_TYPE -> TYPE OF FILING: _X_ ORIGINAL ___UPDATED ___ REVISED | K8: PAGE 1 OF 1
A9: WORK PAPER REFERENCE NO(S).: | K9: WITNESS:
A10: =TIME -> 12 MONTHS FORECASTED | K10: =WIT -> B. L. Sailers
A11: =INPUT!D4 -> INCLUDES ALL RIDERS
E14: REVENUE AT | G14: REVENUE AT | I14: REVENUE | K14: % OF
A15: LINE | C15: RATE | E15: PRESENT | G15: PROPOSED | I15: CHANGE | K15: REVENUE
A16: NO. | C16: CLASSIFICATION | E16: RATES | G16: RATES | I16: (AMOUNT) | K16: CHANGE
C17: (A) | E17: (B) | G17: (C) | I17: (D=C-B) | K17: (E=D / B)
E18: ($) | G18: ($) | I18: ($)
A19: 1 | C19: SALES SERVICE:
A21: 2 | C21: RS RESIDENTIAL | E21: ='Rate RS'!AN83 -> 63279833 | G21: ='Rate RS'!R40 -> 69728261 | I21: =G21-E21 -> 6448428 | K21: =IF(E21=0,"0.00%",ROUND(I21/E21,4)) -> 0.1019
A22: 3 | C22: TOTAL RS | E22: =E21 -> 63279833 | G22: =G21 -> 69728261 | I22: =I21 -> 6448428 | K22: =IF(E22=0,"0.00%",ROUND(I22/E22,4)) -> 0.1019
A24: 4 | C24: GS COMMERCIAL | E24: ='Rate GS COM'!AN81 -> 19817285 | G24: ='Rate GS COM'!R39 -> 21858999 | I24: =G24-E24 -> 2041714 | K24: =IF(E24=0,"0.00%",ROUND(I24/E24,4)) -> 0.103
A25: 5 | C25: GS INDUSTRIAL | E25: ='Rate GS IND'!AN86 -> 1165718 | G25: ='Rate GS IND'!R39 -> 1297124 | I25: =G25-E25 -> 131406 | K25: =IF(E25=0,"0.00%",ROUND(I25/E25,4)) -> 0.1127
A26: 6 | C26: GS OTHER PUB AUTH | E26: ='Rate GS OPA'!AN83 -> 2215244 | G26: ='Rate GS OPA'!R39 -> 2466546 | I26: =G26-E26 -> 251302 | K26: =IF(E26=0,"0.00%",ROUND(I26/E26,4)) -> 0.1134
A27: 7 | C27: TOTAL GS | E27: =SUM(E24:E26) -> 23198247 | G27: =SUM(G24:G26) -> 25622669 | I27: =SUM(I24:I26) -> 2424422 | K27: =IF(E27=0,"0.00%",ROUND(I27/E27,4)) -> 0.1045
A29: 8 | C29: TOTAL SALES SERVICE | E29: =E22+E27 -> 86478080 | G29: =G22+G27 -> 95350930 | I29: =I22+I27 -> 8872850 | K29: =IF(E29=0,"0.00%",ROUND(I29/E29,4)) -> 0.1026
A31: 9 | C31: TRANSPORTATION:
A33: 10 | C33: FT LARGE | E33: ='Rate FT-LG'!AN75 -> 5042683 | G33: ='Rate FT-LG'!R36 -> 6588156 | I33: =G33-E33 -> 1545473 | K33: =IF(E33=0,"0.00%",ROUND(I33/E33,4)) -> 0.3065
A34: 11 | C34: IT | E34: ='Rate IT'!AN76 -> 1524248 | G34: ='Rate IT'!R35 -> 1648124 | I34: =G34-E34 -> 123876 | K34: =IF(E34=0,"0.00%",ROUND(I34/E34,4)) -> 0.0813
A35: 12 | C35: TOTAL TRANSPORTATION | E35: =SUM(E33:E34) -> 6566931 | G35: =SUM(G33:G34) -> 8236280 | I35: =SUM(I33:I34) -> 1669349 | K35: =IF(E35=0,"0.00%",ROUND(I35/E35,4)) -> 0.2542
A36: 13 | C36: TOTAL THROUGHPUT | E36: =E35+E29 -> 93045011 | G36: =G35+G29 -> 103587210 | I36: =I35+I29 -> 10542199 | K36: =IF(E36=0,"0.00%",ROUND(I36/E36,4)) -> 0.1133
A37: 14 | C37: MISCELLANEOUS REVENUES:
A39: 15 | C39: LATE PAYMENT CHARGES | E39: ='SCH M-2.2'!V37 -> 0 | G39: ='SCH M-2.3'!R37 -> 0 | I39: =G39-E39 -> 0 | K39: =IF(I39=0,"0.00%",ROUND(I39/E39,4)) -> 0.00%
A40: 16 | C40: BAD CHECK CHARGES | E40: ='SCH M-2.2'!V38 -> 28032 | G40: ='SCH M-2.3'!R38 -> 28032 | I40: 0 | K40: 0.00%
A41: 17 | C41: RECONNECTION CHARGES | E41: ='SCH M-2.2'!V39 -> 22068 | G41: ='SCH M-2.3'!R39 -> 22068 | I41: 0 | K41: 0.00%
A42: 18 | C42: RENTS | E42: ='SCH M-2.2'!V40 -> 14496 | G42: ='SCH M-2.3'!R40 -> 14496 | I42: 0 | K42: 0.00%
A43: 19 | C43: INTERDEPARTMENTAL | E43: ='SCH M-2.2'!V41 -> 27765 | G43: ='SCH M-2.3'!R41 -> 27765 | I43: 0 | K43: 0.00%
A44: 20 | C44: SPECIAL CONTRACTS | E44: ='SCH M-2.2'!V42 -> 0 | G44: ='SCH M-2.3'!R42 -> 0 | I44: 0 | K44: 0.00%
A45: 21 | C45: REVENUE TRANSP OF GAS-INTERCO | E45: ='SCH M-2.2'!V43 -> 0 | G45: ='SCH M-2.3'!R43 -> 0 | I45: 0 | K45: 0.00%
A46: 22 | C46: PROVISION FOR RATE REFUNDS | E46: ='SCH M-2.2'!V44 -> 0 | G46: ='SCH M-2.3'!R44 -> 0 | I46: =G46-E46 -> 0 | K46: =IF(I46=0,"0.00%",ROUND(I46/E46,4)) -> 0.00%
A47: 23 | C47: OTHER MISC | E47: ='SCH M-2.2'!V45 -> 1896 | G47: ='SCH M-2.3'!R45 -> 1896 | I47: 0 | K47: 0.00%
A48: 24 | C48: TOTAL MISCELLANEOUS | E48: =SUM(E39:E47) -> 94257 | G48: =SUM(G39:G47) -> 94257 | I48: =SUM(I39:I47) -> 0 | K48: 0.00%
A50: 25 | C50: TOTAL COMPANY REVENUE | E50: =E29++E35+E48 -> 93139268 | G50: =G29++G35+G48 -> 103681467 | I50: =I29++I35+I48 -> 10542199 | K50: =IF(I50=0,"0.00%",ROUND(I50/E50,4)) -> 0.1132

Sheet SCH M-2.1
A1: =COMPANY -> DUKE ENERGY KENTUCKY
A2: =CASE -> CASE NO. 2018- 00261
A3: TEST PERIOD REVENUES AT CURRENT AVERAGE RATES
A4: =TIME_PERIOD -> FOR THE TWELVE MONTHS ENDED MARCH 31, 2020
A5: =SERV_TYPE -> (GAS SERVICE)
A6: =DATA_TYPE -> DATA: ___ BASE PERIOD _X_FORECASTED PERIOD | R6: SCHEDULE M-2.1
A7: =FILING_TYPE -> TYPE OF FILING: _X_ ORIGINAL ___UPDATED ___ REVISED | R7: PAGE 1 OF 1
A8: WORK PAPER REFERENCE NO(S).: | R8: WITNESS:
A9: =TIME -> 12 MONTHS FORECASTED | F9: =INPUT!D4 -> INCLUDES ALL RIDERS | R9: =WIT -> B. L. Sailers
A10: TEST PERIOD
J12: TEST PERIOD | N12: % OF REV
J13: REVENUE LESS | L13: CURRENT | N13: TO TOTAL | R13: TEST PERIOD
A14: LINE | C14: RATE | D14: CLASS / | F14: CUSTOMER | J14: GAS COST | L14: AVERAGE | N14: EXCLUSIVE OF | P14: GAS COST | R14: REVENUE | T14: % OF REV
A15: NO. | C15: CODE | D15: DESCRIPTION | F15: BILLS | H15: SALES | J15: REVENUE | L15: RATE | N15: GAS COST | P15: REVENUE | R15: TOTAL | T15: TO TOTAL
C16: (A) | D16: (B) | F16: (C) | H16: (D) | J16: (E) | L16: (F=E/D) | N16: (G) | P16: (H) | R16: (I) | T16: (J)
H18: (MCF) | J18: ($) | L18: ($/MCF) | N18: (%) | P18: ($) | R18: ($) | T18: (%)
A19: 1 | C19: RS | D19: RESIDENTIAL SERVICE | F19: ='Rate RS'!X83 -> 1110274 | H19: ='Rate RS'!Z83 -> 5915484 | J19: ='Rate RS'!AD83 -> 39533306 | L19: =IF(H19=0,"-",ROUND(J19/H19,4)) -> 6.683 | N19: =IF(ABS(J19/$J$34*100)<0.005,"-",ROUND(J19/$J$34*100,2))-0.01 -> 69.58 | P19: ='Rate RS'!AL83 -> 23746527 | R19: =J19+P19 -> 63279833 | T19: =IF(ABS(R19/$R$34*100)<0.005,"-",ROUND(R19/$R$34*100,2)) -> 67.94
A20: 2 | C20: GS | D20: GENERAL SERVICE COMMERCIAL | F20: ='Rate GS COM'!X81 -> 78250 | H20: ='Rate GS COM'!Z81 -> 2630680 | J20: ='Rate GS COM'!AD81 -> 9256946 | L20: =IF(H20=0,"-",ROUND(J20/H20,4)) -> 3.5188 | N20: =IF(ABS(J20/$J$34*100)<0.005,"-",ROUND(J20/$J$34*100,2)) -> 16.3 | P20: ='Rate GS COM'!AL81 -> 10560339 | R20: =J20+P20 -> 19817285 | T20: 21.28
A21: 3 | C21: GS | D21: GENERAL SERVICE INDUSTRIAL | F21: ='Rate GS IND'!X86 -> 2513 | H21: ='Rate GS IND'!Z86 -> 171720 | J21: ='Rate GS IND'!AD86 -> 476382 | L21: 2.7742 | N21: 0.84 | P21: ='Rate GS IND'!AL86 -> 689336 | R21: 1165718 | T21: 1.25
A22: 4 | C22: GS | D22: GENERAL SERVICE OTHER PUB AUTH | F22: ='Rate GS OPA'!X83 -> 4482 | H22: ='Rate GS OPA'!Z83 -> 328708 | J22: ='Rate GS OPA'!AD83 -> 895711 | L22: 2.7249 | N22: 1.58 | P22: ='Rate GS OPA'!AL83 -> 1319533 | R22: 2215244 | T22: 2.38
A23: 5 | C23: FT-L | D23: FIRM TRANSPORTATION-LARGE | F23: ='Rate FT-LG'!X75 -> 1128 | H23: ='Rate FT-LG'!Z75 -> 2617229 | J23: ='Rate FT-LG'!AD75 -> 5042683 | L23: 1.9267 | N23: 8.88 | P23: ='Rate FT-LG'!AL75 -> 0 | R23: 5042683 | T23: 5.41
A24: 6 | C24: IT | D24: INTERRUPTIBLE TRANSPORTATION | F24: ='Rate IT'!X76 -> 264 | H24: ='Rate IT'!Z76 -> 1479992 | J24: ='Rate IT'!AD76 -> 1524248 | L24: =IF(H24=0,"-",ROUND(J24/H24,4)) -> 1.0299 | N24: 2.68 | P24: ='Rate IT'!AL76 -> 0 | R24: =J24+P24 -> 1524248 | T24: 1.64
A25: 7 | D25: LATE PAYMENT CHARGES | F25: ='SCH M-2.2'!F37 -> 0 | H25: ='SCH M-2.2'!H37 -> 0 | J25: ='SCH M-2.2'!L37 -> 0 | L25: =IF(H25=0,"-",ROUND(J25/H25,4)) -> - | N25: - | P25: ='SCH M-2.2'!T37 -> 0 | R25: 0 | T25: -
A26: 8 | D26: BAD CHECK CHARGES | F26: ='SCH M-2.2'!F38 -> 0 | H26: ='SCH M-2.2'!H38 -> 0 | J26: ='SCH M-2.2'!L38 -> 28032 | L26: - | N26: 0.05 | P26: ='SCH M-2.2'!T38 -> 0 | R26: 28032 | T26: 0.03
A27: 9 | D27: RECONNECTION CHARGES | F27: ='SCH M-2.2'!F39 -> 0 | H27: ='SCH M-2.2'!H39 -> 0 | J27: ='SCH M-2.2'!L39 -> 22068 | L27: - | N27: 0.04 | P27: ='SCH M-2.2'!T39 -> 0 | R27: 22068 | T27: 0.02
A28: 10 | D28: RENTS | F28: ='SCH M-2.2'!F40 -> 0 | H28: ='SCH M-2.2'!H40 -> 0 | J28: ='SCH M-2.2'!L40 -> 14496 | L28: - | N28: 0.03 | P28: ='SCH M-2.2'!T40 -> 0 | R28: 14496 | T28: 0.02
A29: 11 | D29: INTERDEPARTMENTAL | F29: ='SCH M-2.2'!F41 -> 0 | H29: ='SCH M-2.2'!H41 -> 4542 | J29: ='SCH M-2.2'!L41 -> 9326 | L29: 2.0533 | N29: 0.02 | P29: ='SCH M-2.2'!T41 -> 18439 | R29: 27765 | T29: 0.03
A30: 12 | D30: SPECIAL CONTRACTS | F30: ='SCH M-2.2'!F42 -> 0 | H30: ='SCH M-2.2'!H42 -> 0 | J30: ='SCH M-2.2'!L42 -> 0 | L30: - | N30: - | P30: ='SCH M-2.2'!T42 -> 0 | R30: 0 | T30: -
A31: 13 | D31: REVENUE TRANSP OF GAS-INTERCO | F31: ='SCH M-2.2'!F43 -> 0 | H31: ='SCH M-2.2'!H43 -> 0 | J31: ='SCH M-2.2'!L43 -> 0 | L31: - | N31: - | P31: ='SCH M-2.2'!T43 -> 0 | R31: 0 | T31: -
A32: 14 | D32: PROVISION FOR RATE REFUNDS | F32: ='SCH M-2.2'!F44 -> 0 | H32: ='SCH M-2.2'!H44 -> 0 | J32: ='SCH M-2.2'!L44 -> 0 | L32: =IF(H32=0,"-",ROUND(J32/H32,4)) -> - | N32: - | P32: ='SCH M-2.2'!T44 -> 0 | R32: =J32+P32 -> 0 | T32: -
A33: 15 | D33: OTHER MISCELLANEOUS | F33: ='SCH M-2.2'!F45 -> 0 | H33: ='SCH M-2.2'!H45 -> 0 | J33: ='SCH M-2.2'!L45 -> 1896 | L33: - | N33: - | P33: ='SCH M-2.2'!T45 -> 0 | R33: 1896 | T33: -
A34: 16 | C34: TOTAL | F34: =SUM(F19:F33) -> 1196911 | H34: =SUM(H19:H33) -> 13148355 | J34: =SUM(J19:J33) -> 56805094 | L34: =IF(H34=0,"-",ROUND(J34/H34,4)) -> 4.3203 | N34: =SUM(N19:N33) -> 100 | P34: =SUM(P19:P33) -> 36334174 | R34: =SUM(R19:R33) -> 93139268 | T34: =SUM(T19:T33) -> 100
C36: NOTE: DETAIL CONTAINED ON SCHEDULES M-2.2 AND M-2.3.

Sheet SCH M-2.2
A1: =COMPANY -> DUKE ENERGY KENTUCKY
A2: =CASE -> CASE NO. 2018- 00261
A3: ANNUALIZED REVENUES AT PROPOSED VS. MOST CURRENT RATES
A4: =TIME_PERIOD -> FOR THE TWELVE MONTHS ENDED MARCH 31, 2020
A5: =SERV_TYPE -> (GAS SERVICE)
A6: =DATA_TYPE -> DATA: ___ BASE PERIOD _X_FORECASTED PERIOD | V6: SCHEDULE M-2.2
A7: =FILING_TYPE -> TYPE OF FILING: _X_ ORIGINAL ___UPDATED ___ REVISED | V7: PAGE 1 OF 7
A8: WORK PAPER REFERENCE NO(S).: | V8: WITNESS:
A9: =TIME -> 12 MONTHS FORECASTED | F9: =INPUT!D4 -> INCLUDES ALL RIDERS | V9: =WIT -> B. L. Sailers
A10: CURRENT ANNUALIZED
L12: CURRENT | N12: % OF REV TO | P12: REVENUE | R12: % INCR IN | V12: CURRENT | X12: TOTAL
J13: MOST | L13: REVENUE LESS | N13: TOTAL LESS | P13: INCR LESS | R13: REV LESS | V13: TOTAL | X13: REVENUE
A14: LINE | C14: RATE | D14: CLASS / | F14: CUSTOMER | J14: CURRENT | L14: GAS COST | N14: GAS COST | P14: GAS COST REV | R14: GAS COST REV | T14: GAS COST | V14: REVENUE | X14: % INCREASE
A15: NO. | C15: CODE | D15: DESCRIPTION | F15: BILLS(1) | H15: SALES(2) | J15: RATES | L15: REVENUE(4) | N15: REVENUE | P15: (F - K) | R15: (M / K) | T15: REVENUE(3) | V15: (K + H) | X15: (M / K1)
C16: (A) | D16: (B) | F16: (C) | H16: (D) | J16: (J) | L16: (K) | N16: (L) | P16: (M) | R16: (N) | T16: (H) | V16: (K1) | X16: (O)
H18: (MCF) | J18: ($/MCF) | L18: ($) | N18: (%) | P18: ($) | R18: (%) | T18: ($) | V18: ($) | X18: (%)
A19: 1 | C19: SALES SERVICE:
A20: 2 | C20: RS | D20: RESIDENTIAL | F20: ='Rate RS'!X83 -> 1110274 | H20: ='Rate RS'!Z83 -> 5915484 | J20: =ROUND((L20/H20),4) -> 6.683 | L20: ='Rate RS'!AD83 -> 39533306 | N20: =ROUND((L20/L$21)*100,2) -> 100 | P20: ='Rate RS'!AH83 -> 6448428 | R20: =IF(L20=0,"0.0 ",ROUND((P20/L20)*100,1)) -> 16.3 | T20: ='Rate RS'!AL83 -> 23746527 | V20: ='Rate RS'!AN83 -> 63279833 | X20: =IF(V20=0,"0.0 ",ROUND((P20/V20)*100,1)) -> 10.2
A21: 3 | D21: TOTAL RS | F21: =F20 -> 1110274 | H21: =H20 -> 5915484 | J21: =ROUND((L21/H21),4) -> 6.683 | L21: =L20 -> 39533306 | N21: =ROUND((L21/$L48)*100,2)+0.01 -> 69.6 | P21: =P20 -> 6448428 | R21: =IF(L21=0,"0.0 ",ROUND((P21/L21)*100,1)) -> 16.3 | T21: =T20 -> 23746527 | V21: =V20 -> 63279833 | X21: =IF(V21=0,"0.0 ",ROUND((P21/V21)*100,1)) -> 10.2
A23: 4 | C23: GS | D23: COMMERCIAL | F23: ='Rate GS COM'!X81 -> 78250 | H23: ='Rate GS COM'!Z81 -> 2630680 | J23: =ROUND((L23/H23),4) -> 3.5188 | L23: ='Rate GS COM'!AD81 -> 9256946 | N23: =ROUND((L23/$L26)*100,2) -> 87.09 | P23: ='Rate GS COM'!AH81 -> 2041714 | R23: =IF(L23=0,"0.0 ",ROUND((P23/L23)*100,1)) -> 22.1 | T23: ='Rate GS COM'!AL81 -> 10560339 | V23: ='Rate GS COM'!AN81 -> 19817285 | X23: =IF(V23=0,"0.0 ",ROUND((P23/V23)*100,1)) -> 10.3
A24: 5 | C24: GS | D24: INDUSTRIAL | F24: ='Rate GS IND'!X86 -> 2513 | H24: ='Rate GS IND'!Z86 -> 171720 | J24: =ROUND((L24/H24),4) -> 2.7742 | L24: ='Rate GS IND'!AD86 -> 476382 | N24: =ROUND((L24/$L26)*100,2) -> 4.48 | P24: ='Rate GS IND'!AH86 -> 131406 | R24: =IF(L24=0,"0.0 ",ROUND((P24/L24)*100,1)) -> 27.6 | T24: ='Rate GS IND'!AL86 -> 689336 | V24: ='Rate GS IND'!AN86 -> 1165718 | X24: =IF(V24=0,"0.0 ",ROUND((P24/V24)*100,1)) -> 11.3
A25: 6 | C25: GS | D25: OTH PUB AUTH | F25: ='Rate GS OPA'!X83 -> 4482 | H25: ='Rate GS OPA'!Z83 -> 328708 | J25: =ROUND((L25/H25),4) -> 2.7249 | L25: ='Rate GS OPA'!AD83 -> 895711 | N25: =ROUND((L25/$L26)*100,2) -> 8.43 | P25: ='Rate GS OPA'!AH83 -> 251302 | R25: =IF(L25=0,"0.0 ",ROUND((P25/L25)*100,1)) -> 28.1 | T25: ='Rate GS OPA'!AL83 -> 1319533 | V25: ='Rate GS OPA'!AN83 -> 2215244 | X25: =IF(V25=0,"0.0 ",ROUND((P25/V25)*100,1)) -> 11.3
A26: 7 | D26: TOTAL GS | F26: =SUM(F23:F25) -> 85245 | H26: =SUM(H23:H25) -> 3131108 | J26: =ROUND((L26/H26),4) -> 3.3947 | L26: =SUM(L23:L25) -> 10629039 | N26: =ROUND((L26/$L48)*100,2) -> 18.71 | P26: =SUM(P23:P25) -> 2424422 | R26: =IF(L26=0,"0.0 ",ROUND((P26/L26)*100,1)) -> 22.8 | T26: =SUM(T23:T25) -> 12569208 | V26: =SUM(V23:V25) -> 23198247 | X26: =IF(V26=0,"0.0 ",ROUND((P26/V26)*100,1)) -> 10.5
A28: 8 | C28: TOTAL SALES SERVICE | F28: =F21+F26 -> 1195519 | H28: =H21+H26 -> 9046592 | J28: =ROUND((L28/H28),4) -> 5.5449 | L28: =L21+L26 -> 50162345 | N28: =100-N33-N46 -> 88.31 | P28: =P21+P26 -> 8872850 | R28: =IF(L28=0,"0.0 ",ROUND((P28/L28)*100,1)) -> 17.7 | T28: =T21+T26 -> 36315735 | V28: =V21+V26 -> 86478080 | X28: =IF(V28=0,"0.0 ",ROUND((P28/V28)*100,1)) -> 10.3
A30: 9 | C30: TRANSPORTATION SERVICE:
A31: 10 | C31: FT-L | D31: FIRM TRANSP - LARGE | F31: ='Rate FT-LG'!X75 -> 1128 | H31: ='Rate FT-LG'!Z75 -> 2617229 | J31: =ROUND((L31/H31),4) -> 1.9267 | L31: ='Rate FT-LG'!AD75 -> 5042683 | N31: =ROUND((L31/L$33)*100,2) -> 76.79 | P31: ='Rate FT-LG'!AH75 -> 1545473 | R31: =IF(L31=0,"0.0 ",ROUND((P31/L31)*100,1)) -> 30.6 | T31: ='Rate FT-LG'!AL75 -> 0 | V31: ='Rate FT-LG'!AN75 -> 5042683 | X31: =IF(V31=0,"0.0 ",ROUND((P31/V31)*100,1)) -> 30.6
A32: 11 | C32: IT | D32: INTERRUPTIBLE TRANSP | F32: ='Rate IT'!X76 -> 264 | H32: ='Rate IT'!Z76 -> 1479992 | J32: =ROUND((L32/H32),4) -> 1.0299 | L32: ='Rate IT'!AD76 -> 1524248 | N32: =ROUND((L32/L$33)*100,2) -> 23.21 | P32: ='Rate IT'!AH76 -> 123876 | R32: =IF(L32=0,"0.0 ",ROUND((P32/L32)*100,1)) -> 8.1 | T32: ='Rate IT'!AL76 -> 0 | V32: ='Rate IT'!AN76 -> 1524248 | X32: =IF(V32=0,"0.0 ",ROUND((P32/V32)*100,1)) -> 8.1
A33: 12 | C33: TOTAL TRANSP SERVICE | F33: =SUM(F31:F32) -> 1392 | H33: =SUM(H31:H32) -> 4097221 | J33: =ROUND((L33/H33),4) -> 1.6028 | L33: =SUM(L31:L32) -> 6566931 | N33: =ROUND((L33/L$48)*100,2) -> 11.56 | P33: =SUM(P31:P32) -> 1669349 | R33: =IF(L33=0,"0.0 ",ROUND((P33/L33)*100,1)) -> 25.4 | T33: =SUM(T31:T32) -> 0 | V33: =SUM(V31:V32) -> 6566931 | X33: =IF(V33=0,"0.0 ",ROUND((P33/V33)*100,1)) -> 25.4
A34: 13 | C34: TOTAL THROUGHPUT | F34: =F28+F33 -> 1196911 | H34: =H28+H33 -> 13143813 | J34: =ROUND((L34/H34),4) -> 4.316 | L34: =L28+L33 -> 56729276 | N34: =N28+N33 -> 99.87 | P34: =P28+P33 -> 10542199 | R34: =IF(L34=0,"0.0 ",ROUND((P34/L34)*100,1)) -> 18.6 | T34: =T28+T33 -> 36315735 | V34: =V28+V33 -> 93045011 | X34: =IF(V34=0,"0.0 ",ROUND((P34/V34)*100,1)) -> 11.3
A36: 14 | C36: MISCELLANEOUS REVENUES:
A37: 15 | C37: LATE PAYMENT CHARGES | F37: 0 | H37: 0 | L37: 0 | N37: =ROUND((L37/L$46)*100,2) -> 0 | P37: ='SCH M-2.3'!L37-'SCH M-2.2'!L37 -> 0 | T37: 0 | V37: =L37+T37 -> 0
A38: 16 | C38: BAD CHECK CHARGES | F38: 0 | H38: 0 | L38: 28032 | N38: 36.97 | P38: ='SCH M-2.3'!L38-'SCH M-2.2'!L38 -> 0 | T38: 0 | V38: 28032
A39: 17 | C39: RECONNECTION CHARGES | F39: 0 | H39: 0 | L39: 22068 | N39: 29.11 | P39: ='SCH M-2.3'!L39-'SCH M-2.2'!L39 -> 0 | T39: 0 | V39: 22068
A40: 18 | C40: RENTS | F40: 0 | H40: 0 | L40: 14496 | N40: 19.12 | P40: ='SCH M-2.3'!L40-'SCH M-2.2'!L40 -> 0 | T40: 0 | V40: 14496
A41: 19 | C41: INTERDEPARTMENTAL | F41: 0 | H41: 4542 | L41: =ROUND(V41-(H41*EGC),0)-206 -> 9326 | N41: =ROUND((L41/L$46)*100,2) -> 12.3 | P41: ='SCH M-2.3'!L41-'SCH M-2.2'!L41 -> 0 | T41: =V41-L41 -> 18439 | V41: 27765
A42: 20 | C42: SPECIAL CONTRACTS | F42: 0 | H42: 0 | L42: 0 | N42: 0 | P42: ='SCH M-2.3'!L42-'SCH M-2.2'!L42 -> 0 | T42: 0 | V42: 0
A43: 21 | C43: REVENUE TRANSP OF GAS-INTERCO | F43: 0 | H43: 0 | L43: 0 | N43: 0 | P43: ='SCH M-2.3'!L43-'SCH M-2.2'!L43 -> 0 | T43: 0 | V43: 0
A44: 22 | C44: PROVISION FOR RATE REFUNDS | F44: 0 | H44: 0 | L44: 0 | N44: 0 | P44: ='SCH M-2.3'!L44-'SCH M-2.2'!L44 -> 0 | T44: 0 | V44: =L44+T44 -> 0
A45: 23 | C45: OTHER MISC | F45: 0 | H45: 0 | L45: =924+972 -> 1896 | N45: 2.5 | P45: ='SCH M-2.3'!L45-'SCH M-2.2'!L45 -> 0 | T45: 0 | V45: 1896
A46: 24 | C46: TOTAL MISC | F46: =SUM(F37:F45) -> 0 | H46: =SUM(H37:H45) -> 4542 | L46: =SUM(L37:L45) -> 75818 | N46: =ROUND((L46/L$48)*100,2) -> 0.13 | P46: =SUM(P37:P45) -> 0 | R46: =IF(L46=0,"0.0 ",ROUND((P46/L46)*100,1)) -> 0 | T46: =SUM(T37:T45) -> 18439 | V46: =SUM(V37:V45) -> 94257 | X46: =IF(V46=0,"0.0 ",ROUND((P46/V46)*100,1)) -> 0
A48: 25 | C48: TOTAL COMPANY | F48: =F28+F33+F46 -> 1196911 | H48: =H28+H33+H46 -> 13148355 | J48: =ROUND((L48/H48),4) -> 4.3203 | L48: =L28+L33+L46 -> 56805094 | N48: 100 | P48: =P28+P33+P46 -> 10542199 | R48: =IF(L48=0,"0.0 ",ROUND((P48/L48)*100,1)) -> 18.6 | T48: =T28+T33+T46 -> 36334174 | V48: =V28+V33+V46 -> 93139268 | X48: =IF(V48=0,"0.0 ",ROUND((P48/V48)*100,1)) -> 11.3
C50: (1) DETAIL CONTAINED ON SCHEDULES M-2.2, PAGES 2 THROUGH 7.
C51: (2) REFLECTS NORMALIZED VOLUMES.
C52: ="(3) REFLECTS AVERAGE EXPECTED GAS COST OF "&TEXT(EGC,"$0.000")&"/MCF." -> (3) REFLECTS AVERAGE EXPECTED GAS COST OF $4.014/MCF.

Sheet SCH M-2.3
A1: =COMPANY -> DUKE ENERGY KENTUCKY
A2: =CASE -> CASE NO. 2018- 00261
A3: ANNUALIZED REVENUES AT PROPOSED VS. MOST CURRENT RATES
A4: =TIME_PERIOD -> FOR THE TWELVE MONTHS ENDED MARCH 31, 2020
A5: =SERV_TYPE -> (GAS SERVICE)
A6: =DATA_TYPE -> DATA: ___ BASE PERIOD _X_FORECASTED PERIOD | R6: SCHEDULE M-2.3
A7: =FILING_TYPE -> TYPE OF FILING: _X_ ORIGINAL ___UPDATED ___ REVISED | R7: PAGE 1 OF 7
A8: WORK PAPER REFERENCE NO(S).: | R8: WITNESS:
A9: =TIME -> 12 MONTHS FORECASTED | F9: =INPUT!D4 -> INCLUDES ALL RIDERS | R9: =WIT -> B. L. Sailers
A10: PROPOSED ANNUALIZED
L12: PROPOSED | N12: % OF REV TO | R12: PROPOSED
L13: REVENUE LESS | N13: TOTAL LESS | R13: TOTAL
A14: LINE | C14: RATE | D14: CLASS / | F14: CUSTOMER | J14: PROPOSED | L14: GAS COST | N14: GAS COST | P14: GAS COST | R14: REVENUE
A15: NO. | C15: CODE | D15: DESCRIPTION | F15: BILLS(1) | H15: SALES(2) | J15: RATES | L15: REVENUE(4) | N15: REVENUE | P15: REVENUE(3) | R15: (F + H)
C16: (A) | D16: (B) | F16: (C) | H16: (D) | J16: (E) | L16: (F) | N16: (G) | P16: (H) | R16: (I)
H18: (MCF) | J18: ($/MCF) | L18: ($) | N18: (%) | P18: ($) | R18: ($)
A19: 1 | C19: SALES SERVICE:
A20: 2 | C20: RS | D20: RESIDENTIAL | F20: ='Rate RS'!F40 -> 1110274 | H20: ='Rate RS'!H40 -> 5915484 | J20: =IF(F20=0,"0.0 ",ROUND((L20/H20),4)) -> 7.7731 | L20: ='Rate RS'!L40 -> 45981734 | N20: =ROUND((L20/L$21)*100,2) -> 100 | P20: ='Rate RS'!P40 -> 23746527 | R20: ='Rate RS'!R40 -> 69728261
A21: 3 | D21: TOTAL RS | F21: =F20 -> 1110274 | H21: =H20 -> 5915484 | J21: =IF(F21=0,"0.0 ",ROUND((L21/H21),4)) -> 7.7731 | L21: =L20 -> 45981734 | N21: =ROUND((L21/L$48)*100,2) -> 68.28 | P21: =P20 -> 23746527 | R21: =R20 -> 69728261
A23: 4 | C23: GS | D23: COMMERCIAL | F23: ='Rate GS COM'!F39 -> 78250 | H23: ='Rate GS COM'!H39 -> 2630680 | J23: =IF(F23=0,"0.0 ",ROUND((L23/H23),4)) -> 4.295 | L23: ='Rate GS COM'!L39 -> 11298660 | N23: =ROUND((L23/L$26)*100,2) -> 86.56 | P23: ='Rate GS COM'!P39 -> 10560339 | R23: ='Rate GS COM'!R39 -> 21858999
A24: 5 | C24: GS | D24: INDUSTRIAL | F24: ='Rate GS IND'!F39 -> 2513 | H24: ='Rate GS IND'!H39 -> 171720 | J24: =IF(F24=0,"0.0 ",ROUND((L24/H24),4)) -> 3.5394 | L24: ='Rate GS IND'!L39 -> 607788 | N24: =ROUND((L24/L$26)*100,2) -> 4.66 | P24: ='Rate GS IND'!P39 -> 689336 | R24: ='Rate GS IND'!R39 -> 1297124
A25: 6 | C25: GS | D25: OTH PUB AUTH | F25: ='Rate GS OPA'!F39 -> 4482 | H25: ='Rate GS OPA'!H39 -> 328708 | J25: =IF(F25=0,"0.0 ",ROUND((L25/H25),4)) -> 3.4895 | L25: ='Rate GS OPA'!L39 -> 1147013 | N25: =ROUND((L25/L$26)*100,2) -> 8.79 | P25: ='Rate GS OPA'!P39 -> 1319533 | R25: ='Rate GS OPA'!R39 -> 2466546
A26: 7 | D26: TOTAL GS | F26: =SUM(F23:F25) -> 85245 | H26: =SUM(H23:H25) -> 3131108 | J26: =IF(F26=0,"0.0 ",ROUND((L26/H26),4)) -> 4.169 | L26: =SUM(L23:L25) -> 13053461 | N26: =ROUND((L26/L$48)*100,2) -> 19.38 | P26: =SUM(P23:P25) -> 12569208 | R26: =SUM(R23:R25) -> 25622669
A28: 8 | C28: TOTAL SALES SERVICE | F28: =F21+F26 -> 1195519 | H28: =H21+H26 -> 9046592 | J28: =IF(F28=0,"0.0 ",ROUND((L28/H28),4)) -> 6.5257 | L28: =L21+L26 -> 59035195 | N28: =ROUND((L28/L$48)*100,2) -> 87.66 | P28: =P21+P26 -> 36315735 | R28: =R21+R26 -> 95350930
A30: 9 | C30: TRANSPORTATION SERVICE:
A31: 10 | C31: FT-L | D31: FIRM TRANSP - LARGE | F31: ='Rate FT-LG'!F36 -> 1128 | H31: ='Rate FT-LG'!H36 -> 2617229 | J31: =IF(F31=0,"0.0 ",ROUND((L31/H31),4)) -> 2.5172 | L31: ='Rate FT-LG'!L36 -> 6588156 | N31: =ROUND((L31/L$33)*100,2) -> 79.99 | P31: ='Rate FT-LG'!P36 -> 0 | R31: ='Rate FT-LG'!R36 -> 6588156
A32: 11 | C32: IT | D32: INTERRUPTIBLE TRANSP | F32: ='Rate IT'!F35 -> 264 | H32: ='Rate IT'!H35 -> 1479992 | J32: =IF(F32=0,"0.0 ",ROUND((L32/H32),4)) -> 1.1136 | L32: ='Rate IT'!L35 -> 1648124 | N32: =ROUND((L32/L$33)*100,2) -> 20.01 | P32: ='Rate IT'!P35 -> 0 | R32: ='Rate IT'!R35 -> 1648124
A33: 12 | C33: TOTAL TRANSP SERVICE | F33: =SUM(F31:F32) -> 1392 | H33: =SUM(H31:H32) -> 4097221 | J33: =IF(F33=0,"0.0 ",ROUND((L33/H33),4)) -> 2.0102 | L33: =SUM(L31:L32) -> 8236280 | N33: =ROUND((L33/L$48)*100,2) -> 12.23 | P33: =SUM(P31:P32) -> 0 | R33: =SUM(R31:R32) -> 8236280
A34: 13 | C34: TOTAL THROUGHPUT | F34: =F28+F33 -> 1196911 | H34: =H28+H33 -> 13143813 | J34: =IF(F34=0,"0.0 ",ROUND((L34/H34),4)) -> 5.1181 | L34: =L28+L33 -> 67271475 | N34: =N28+N33 -> 99.89 | P34: =P28+P33 -> 36315735 | R34: =R28+R33 -> 103587210
A36: 14 | C36: MISCELLANEOUS REVENUES:
A37: 15 | C37: LATE PAYMENT CHARGES | F37: 0 | H37: 0 | L37: 0 | N37: =ROUND((L37/L$46)*100,2) -> 0 | P37: 0 | R37: =L37+P37 -> 0
A38: 16 | C38: BAD CHECK CHARGES | F38: 0 | H38: 0 | L38: ='SCH M-2.2'!L38 -> 28032 | N38: 36.97 | P38: 0 | R38: 28032
A39: 17 | C39: RECONNECTION CHARGES | F39: 0 | H39: 0 | L39: ='SCH M-2.2'!L39 -> 22068 | N39: 29.11 | P39: 0 | R39: 22068
A40: 18 | C40: RENTS | F40: 0 | H40: 0 | L40: ='SCH M-2.2'!L40 -> 14496 | N40: 19.12 | P40: 0 | R40: 14496
A41: 19 | C41: INTERDEPARTMENTAL | F41: ='SCH M-2.2'!F41 -> 0 | H41: ='SCH M-2.2'!H41 -> 4542 | L41: ='SCH M-2.2'!L41 -> 9326 | N41: 12.3 | P41: ='SCH M-2.2'!T41 -> 18439 | R41: ='SCH M-2.2'!V41 -> 27765
A42: 20 | C42: SPECIAL CONTRACTS | F42: ='SCH M-2.2'!F42 -> 0 | H42: ='SCH M-2.2'!H42 -> 0 | L42: ='SCH M-2.2'!L42 -> 0 | N42: 0 | P42: 0 | R42: 0
A43: 21 | C43: REVENUE TRANSP OF GAS-INTERCO | F43: 0 | H43: ='SCH M-2.2'!H43 -> 0 | L43: ='SCH M-2.2'!L43 -> 0 | N43: 0 | P43: 0 | R43: 0
A44: 22 | C44: PROVISION FOR RATE REFUNDS | F44: 0 | H44: ='SCH M-2.2'!H44 -> 0 | L44: ='SCH M-2.2'!L44 -> 0 | N44: 0 | P44: 0 | R44: 0
A45: 23 | C45: OTHER MISC | F45: 0 | H45: 0 | L45: ='SCH M-2.2'!L45 -> 1896 | N45: 2.5 | P45: 0 | R45: 1896
A46: 24 | C46: TOTAL MISC | F46: =SUM(F37:F45) -> 0 | H46: =SUM(H37:H45) -> 4542 | L46: =SUM(L37:L45) -> 75818 | N46: =ROUND((L46/L$48)*100,2) -> 0.11 | P46: =SUM(P37:P45) -> 18439 | R46: =SUM(R37:R45) -> 94257
A48: 25 | C48: TOTAL COMPANY | F48: =F28+F33+F46 -> 1196911 | H48: =H28+H33+H46 -> 13148355 | J48: =IF(F48=0,"0.0 ",ROUND((L48/H48),4)) -> 5.1221 | L48: =L28+L33+L46 -> 67347293 | N48: 100 | P48: =P28+P33+P46 -> 36334174 | R48: =R28+R33+R46 -> 103681467
C50: (1) DETAIL CONTAINED ON SCHEDULES M-2.3, PAGES 2 THROUGH 7.
C51: (2) REFLECTS NORMALIZED VOLUMES.
C52: ="(3) REFLECTS AVERAGE EXPECTED GAS COST OF "&TEXT(EGC,"$0.000")&"/MCF." -> (3) REFLECTS AVERAGE EXPECTED GAS COST OF $4.014/MCF.

Sheet Rate RS
A1: =COMPANY -> DUKE ENERGY KENTUCKY
A2: =CASE -> CASE NO. 2018- 00261
A3: ANNUALIZED REVENUES AT PROPOSED VS. MOST CURRENT RATES
A4: =TIME_PERIOD -> FOR THE TWELVE MONTHS ENDED MARCH 31, 2020
A5: =SERV_TYPE -> (GAS SERVICE)
A6: =DATA_TYPE -> DATA: ___ BASE PERIOD _X_FORECASTED PERIOD | R6: SCHEDULE M-2.3
A7: =FILING_TYPE -> TYPE OF FILING: _X_ ORIGINAL ___UPDATED ___ REVISED | R7: PAGE 2 OF 7
A8: WORK PAPER REFERENCE NO(S).: | R8: WITNESS:
A9: =TIME -> 12 MONTHS FORECASTED | R9: =WIT -> B. L. Sailers
A10: PROPOSED ANNUALIZED
L12: PROPOSED | N12: % OF REV TO | R12: PROPOSED
L13: REVENUE LESS | N13: TOTAL LESS | R13: TOTAL
A14: LINE | C14: RATE | D14: CLASS / | F14: CUSTOMER | J14: PROPOSED | L14: GAS COST | N14: GAS COST | P14: GAS COST | R14: REVENUE
A15: NO. | C15: CODE | D15: DESCRIPTION | F15: BILLS(1) | H15: SALES(2) | J15: RATES | L15: REVENUE | N15: REVENUE | P15: REVENUE(3) | R15: (F + H)
C16: (A) | D16: (B) | F16: (C) | H16: (D) | J16: (E) | L16: (F) | N16: (G) | P16: (H) | R16: (I)
H18: (MCF) | J18: ($/MCF) | L18: ($) | N18: (%) | P18: ($) | R18: ($)
A19: 1 | C19: RS | D19: RESIDENTIAL
A21: 2 | C21: CUSTOMER CHARGE:
A22: 3 | C22: RESIDENTIAL
A23: 4 | C23: TOTAL MONTHLY BILLS x :
A24: 5 | C24: CUSTOMER CHARGE PER MONTH | F24: 1110274 | J24: =PRO_RS_CUST -> 17.5 | L24: =ROUND(F24*J24,0) -> 19429795 | N24: =ROUND((L24/$L$40)*100,1) -> 42.3 | R24: =L24+P24 -> 19429795
A26: 6 | C26: COMMODITY CHARGE:
A27: 7 | C27: ALL CONSUMPTION | H27: 5915484 | I27: 2.64 | J27: =PRO_RS_COM -> 4.8677 | L27: =ROUND((H27*J27),0) -> 28794801 | N27: =ROUND((L27/$L$40)*100,1) -> 62.6 | P27: =ROUND(H27*EGC,0) -> 23746527 | R27: =L27+P27 -> 52541328
A29: 8 | C29: RATE RS EXCLUDING RIDERS | F29: =F24 -> 1110274 | H29: =H27 -> 5915484 | L29: =SUM(L24:L27) -> 48224596 | N29: =ROUND((L29/$L$40)*100,1) -> 104.9 | P29: =SUM(P24:P27) -> 23746527 | R29: =SUM(R24:R27) -> 71971123
A31: 9 | C31: RIDERS:
A32: 10 | C32: HOME ENERGY ASSISTANCE PROGRAM (HEA) | J32: =PRO_RS_HEA -> 0.1 | L32: =ROUND(F24*PRO_RS_HEA,0) -> 111027 | N32: =ROUND((L32/$L$40)*100,1) -> 0.2 | R32: =L32+P32 -> 111027
A33: 11 | C33: DEMAND SIDE MANAGEMENT RATE (DSMR) | J33: =PRO_RS_DSM -> -0.39792 | L33: =ROUND(H27*J33,0) -> -2353889 | N33: =ROUND((L33/$L$40)*100,1) -> -5.1 | R33: =L33+P33 -> -2353889
A35: 12 | C35: WEATHER NORMALIZATION ADJUSTMENT (WNA) | J35: 0 | L35: =ROUND(H29*J35,0) -> 0 | N35: =ROUND((L35/$L$40)*100,1) -> 0 | R35: =L35+P35 -> 0
A36: 13 | C36: ACCELERATED SERVICE REPLACEMENT PROGRAM (ASRP) | J36: =PRO_ASRP_RS -> 0 | L36: =ROUND(F24*J36,0) -> 0 | N36: =ROUND((L36/$L$40)*100,1) -> 0 | R36: =L36+P36 -> 0
A38: 14 | C38: TOTAL RIDERS | L38: =SUM(L32:L36) -> -2242862 | N38: =ROUND((L38/$L$40)*100,1) -> -4.9 | R38: =SUM(R32:R36) -> -2242862
A40: 15 | C40: TOTAL RATE RS RESIDENTIAL INCLUDING RIDERS | F40: =F24 -> 1110274 | H40: =H27 -> 5915484 | L40: =L29+L38 -> 45981734 | N40: =SUM(N29+N38) -> 100 | P40: =P29+P38 -> 23746527 | R40: =R29+R38 -> 69728261
C42: (1) BILLS THAT TERMINATE IN RESPECTIVE RATE STEPS.
C43: (2) REFLECTS NORMALIZED VOLUMES.
C44: ="(3) REFLECTS AVERAGE EXPECTED GAS COST OF "&TEXT(EGC,"$0.000")&"/MCF." -> (3) REFLECTS AVERAGE EXPECTED GAS COST OF $4.014/MCF. | T44: =COMPANY -> DUKE ENERGY KENTUCKY
T45: =CASE -> CASE NO. 2018- 00261
T46: ANNUALIZED TEST YEAR REVENUES AT PROPOSED VS. MOST CURRENT RATES
T47: =TIME_PERIOD -> FOR THE TWELVE MONTHS ENDED MARCH 31, 2020
T48: =SERV_TYPE -> (GAS SERVICE)
T49: =DATA_TYPE -> DATA: ___ BASE PERIOD _X_FORECASTED PERIOD | AN49: SCHEDULE M-2.2
T50: =FILING_TYPE -> TYPE OF FILING: _X_ ORIGINAL ___UPDATED ___ REVISED | AN50: =R7 -> PAGE 2 OF 7
T51: WORK PAPER REFERENCE NO(S).: | AN51: WITNESS:
T52: =TIME -> 12 MONTHS FORECASTED | AN52: =WIT -> B. L. Sailers
AD53: CURRENT ANNUALIZED
AD55: CURRENT | AF55: % OF REV TO | AH55: REVENUE | AJ55: % INCR IN | AN55: CURRENT | AP55: TOTAL
AB56: MOST | AD56: REVENUE LESS | AF56: TOTAL LESS | AH56: INCR LESS | AJ56: REV LESS | AN56: TOTAL | AP56: REVENUE
T57: LINE | V57: RATE | W57: CLASS / | X57: CUSTOMER | AB57: CURRENT | AD57: GAS COST | AF57: GAS COST | AH57: GAS COST REV | AJ57: GAS COST REV | AL57: GAS COST | AN57: REVENUE | AP57: % INCREASE
T58: NO. | V58: CODE | W58: DESCRIPTION | X58: BILLS(1) | Z58: SALES(2) | AB58: RATES | AD58: REVENUE | AF58: REVENUE | AH58: (F - K) | AJ58: (M / K) | AL58: REVENUE(3) | AN58: (K + H) | AP58: (M / K1)
V59: (A) | W59: (B) | X59: (C) | Z59: (D) | AB59: (J) | AD59: (K) | AF59: (L) | AH59: (M) | AJ59: (N) | AL59: (H) | AN59: (K1) | AP59: (O)
Z61: (MCF) | AB61: ($/MCF) | AD61: ($) | AF61: (%) | AH61: ($) | AJ61: (%) | AL61: ($) | AN61: ($) | AP61: (%)
T62: 1 | V62: RS | W62: RESIDENTIAL
T64: 2 | V64: CUSTOMER CHARGE:
T65: 3 | V65: RESIDENTIAL
T66: 4 | V66: TOTAL MONTHLY BILLS x :
T67: 5 | V67: CUSTOMER CHARGE PER MONTH | X67: =F24 -> 1110274 | AB67: =CUR_RS_CUST -> 16 | AD67: =ROUND(X67*AB67,0) -> 17764384 | AF67: =ROUND((AD67/$AD$83)*100,1) -> 44.9 | AH67: =L24-AD67 -> 1665411 | AJ67: =IF(AD67=0,"0.0 ",ROUND((AH67/AD67)*100,1)) -> 9.4 | AN67: =AD67+AL67 -> 17764384 | AP67: =IF(AN67=0,"0.0 ",ROUND((AH67/AN67)*100,1)) -> 9.4
T69: 6 | V69: COMMODITY CHARGE:
T70: 7 | V70: ALL CONSUMPTION | Z70: =H27 -> 5915484 | AB70: =CUR_RS -> 3.7213 | AD70: =ROUND((Z70*AB70),0) -> 22013291 | AF70: =ROUND((AD70/$AD$83)*100,1) -> 55.7 | AH70: =L27-AD70 -> 6781510 | AJ70: =IF(AD70=0,"0.0 ",ROUND((AH70/AD70)*100,1)) -> 30.8 | AL70: =P27 -> 23746527 | AN70: =AD70+AL70 -> 45759818 | AP70: =IF(AN70=0,"0.0 ",ROUND((AH70/AN70)*100,1)) -> 14.8
T72: 8 | V72: RATE RS EXCLUDING RIDERS | X72: =X67 -> 1110274 | Z72: =Z70 -> 5915484 | AD72: =SUM(AD67:AD70) -> 39777675 | AF72: =ROUND((AD72/$AD$83)*100,1) -> 100.6 | AH72: =SUM(AH67:AH70) -> 8446921 | AJ72: =IF(AD72=0,"0.0 ",ROUND((AH72/AD72)*100,1)) -> 21.2 | AL72: =SUM(AL67:AL70) -> 23746527 | AN72: =SUM(AN67:AN70) -> 63524202 | AP72: =IF(AN72=0,"0.0 ",ROUND((AH72/AN72)*100,1)) -> 13.3
T74: 9 | V74: RIDERS:
T75: 10 | V75: HOME ENERGY ASSISTANCE PROGRAM (HEA) | AB75: =CUR_RS_HEA -> 0.1 | AD75: =ROUND(X67*CUR_RS_HEA,0) -> 111027 | AF75: =ROUND((AD75/$AD$83)*100,1) -> 0.3 | AH75: =L32-AD75 -> 0 | AJ75: =IF(AD75=0,"0.0 ",ROUND((AH75/AD75)*100,1)) -> 0 | AN75: =AD75+AL75 -> 111027 | AP75: =IF(AN75=0,"0.0 ",ROUND((AH75/AN75)*100,1)) -> 0
T76: 11 | V76: DEMAND SIDE MANAGEMENT RATE (DSMR) | AB76: =CUR_RS_DSM -> -0.39792 | AD76: =ROUND(Z70*AB76,0) -> -2353889 | AF76: =ROUND((AD76/$AD$83)*100,1) -> -6 | AH76: =L33-AD76 -> 0 | AJ76: =IF(AD76=0,"0.0 ",ROUND((AH76/AD76)*100,1)) -> 0 | AN76: =AD76+AL76 -> -2353889 | AP76: =IF(AN76=0,"0.0 ",ROUND((AH76/AN76)*100,1)) -> 0
T78: =A35 -> 12 | V78: WEATHER NORMALIZATION ADJUSTMENT (WNA) | AB78: 0 | AD78: =ROUND(Z72*AB78,0) -> 0 | AF78: =ROUND((AD78/$AD$83)*100,1) -> 0 | AH78: =L35-AD78 -> 0 | AJ78: =IF(AD78=0,"0.0 ",ROUND((AH78/AD78)*100,1)) -> 0.0 | AN78: =AD78+AL78 -> 0 | AP78: =IF(AN78=0,"0.0 ",ROUND((AH78/AN78)*100,1)) -> 0.0
T79: =A36 -> 13 | V79: ACCELERATED SERVICE REPLACEMENT PROGRAM (ASRP) | AB79: =CUR_ASRP_RS -> 1.8 | AD79: =ROUND(X67*AB79,0) -> 1998493 | AF79: 5.1 | AH79: =L36-AD79 -> -1998493 | AJ79: -100 | AN79: 1998493 | AP79: -100
T81: =A38 -> 14 | V81: TOTAL RIDERS | AD81: =SUM(AD75:AD79) -> -244369 | AF81: =ROUND((AD81/$AD$83)*100,1) -> -0.6 | AH81: =SUM(AH75:AH79) -> -1998493 | AJ81: =IF(AD81=0,"0.0 ",ROUND((AH81/AD81)*100,1)) -> 817.8 | AN81: =SUM(AN75:AN79) -> -244369 | AP81: =IF(AN81=0,"0.0 ",ROUND((AH81/AN81)*100,1)) -> 817.8
T83: =A40 -> 15 | V83: TOTAL RATE RS RESIDENTIAL INCLUDING RIDERS | X83: =X67 -> 1110274 | Z83: =Z70 -> 5915484 | AD83: =AD72+AD81 -> 39533306 | AF83: =SUM(AF72+AF81) -> 100 | AH83: =AH72+AH81 -> 6448428 | AJ83: =IF(AD83=0,"0.0 ",ROUND((AH83/AD83)*100,1)) -> 16.3 | AL83: =P40 -> 23746527 | AN83: =AN72+AN81 -> 63279833 | AP83: =IF(AN83=0,"0.0 ",ROUND((AH83/AN83)*100,1)) -> 10.2
V85: (1) BILLS THAT TERMINATE IN RESPECTIVE RATE STEPS.
V86: (2) REFLECTS NORMALIZED VOLUMES.
V87: ="(3) REFLECTS AVERAGE EXPECTED GAS COST OF "&TEXT(EGC,"$0.000")&"/MCF." -> (3) REFLECTS AVERAGE EXPECTED GAS COST OF $4.014/MCF.

Sheet Rate GS COM
A1: =COMPANY -> DUKE ENERGY KENTUCKY
A2: =CASE -> CASE NO. 2018- 00261
A3: ANNUALIZED REVENUES AT PROPOSED VS. MOST CURRENT RATES
A4: =TIME_PERIOD -> FOR THE TWELVE MONTHS ENDED MARCH 31, 2020
A5: =SERV_TYPE -> (GAS SERVICE)
A6: =DATA_TYPE -> DATA: ___ BASE PERIOD _X_FORECASTED PERIOD | R6: SCHEDULE M-2.3
A7: =FILING_TYPE -> TYPE OF FILING: _X_ ORIGINAL ___UPDATED ___ REVISED | R7: PAGE 3 OF 7
A8: WORK PAPER REFERENCE NO(S).: | R8: WITNESS:
A9: =TIME -> 12 MONTHS FORECASTED | R9: =WIT -> B. L. Sailers
A10: PROPOSED ANNUALIZED
L12: PROPOSED | N12: % OF REV TO | R12: PROPOSED
L13: REVENUE LESS | N13: TOTAL LESS | R13: TOTAL
A14: LINE | C14: RATE | D14: CLASS / | F14: CUSTOMER | J14: PROPOSED | L14: GAS COST | N14: GAS COST | P14: GAS COST | R14: REVENUE
A15: NO. | C15: CODE | D15: DESCRIPTION | F15: BILLS(1) | H15: SALES(2) | J15: RATES | L15: REVENUE | N15: REVENUE | P15: REVENUE(3) | R15: (F + H)
C16: (A) | D16: (B) | F16: (C) | H16: (D) | J16: (E) | L16: (F) | N16: (G) | P16: (H) | R16: (I)
H18: (MCF) | J18: ($/MCF) | L18: ($) | N18: (%) | P18: ($) | R18: ($)
A19: 1 | C19: GS | D19: COMMERCIAL
A21: 2 | C21: CUSTOMER CHARGE:
A22: 3 | C22: NON-RESIDENTIAL
A23: 4 | C23: TOTAL MONTHLY BILLS x :
A24: 5 | C24: CUSTOMER CHARGE PER MONTH | F24: 78250 | J24: =PRO_GS_CUST -> 50 | L24: =ROUND(F24*J24,0) -> 3912500 | N24: =ROUND((L24/$L$39)*100,1) -> 34.6 | R24: =L24+P24 -> 3912500
A26: 6 | C26: COMMODITY CHARGE:
A27: 7 | C27: ALL CONSUMPTION | H27: 2630680 | J27: =PRO_GS -> 2.8077 | L27: =ROUND((H27*J27),0) -> 7386160 | N27: =ROUND((L27/$L$39)*100,1) -> 65.4 | P27: =ROUND(H27*EGC,0) -> 10560339 | R27: =L27+P27 -> 17946499
A29: 8 | C29: RATE GS COMMERCIAL EXCLUDING RIDERS | F29: =F24 -> 78250 | H29: =H27 -> 2630680 | L29: =SUM(L24:L27) -> 11298660 | N29: =ROUND((L29/$L$39)*100,1) -> 100 | P29: =SUM(P24:P27) -> 10560339 | R29: =SUM(R24:R27) -> 21858999
A31: 9 | C31: RIDERS:
A32: 10 | C32: DEMAND SIDE MANAGEMENT RATE (DSMR) | J32: =PRO_GS_DSM -> 0 | L32: =ROUND(H27*J32,0) -> 0 | N32: =ROUND((L32/$L$39)*100,1) -> 0 | R32: =L32+P32 -> 0
A34: 11 | C34: WEATHER NORMALIZATION ADJUSTMENT (WNA) | J34: 0 | L34: =ROUND(H29*J34,0) -> 0 | N34: =ROUND((L34/$L$39)*100,1) -> 0 | R34: =L34+P34 -> 0
A35: 12 | C35: ACCELERATED SERVICE REPLACEMENT PROGRAM (ASRP) | J35: =PRO_ASRP_GS -> 0 | L35: =ROUND(F24*J35,0) -> 0 | N35: =ROUND((L35/$L$39)*100,1) -> 0 | R35: =L35+P35 -> 0
A37: 13 | C37: TOTAL RIDERS | L37: =SUM(L31:L35) -> 0 | N37: =ROUND((L37/$L$39)*100,1) -> 0 | R37: =SUM(R31:R35) -> 0
A39: 14 | C39: TOTAL RATE GS COMMERCIAL INCLUDING RIDERS | F39: =F24 -> 78250 | H39: =H27 -> 2630680 | L39: =L29+L37 -> 11298660 | N39: =N29+N37 -> 100 | P39: =P29+P37 -> 10560339 | R39: =R29+R37 -> 21858999
C41: (1) BILLS THAT TERMINATE IN RESPECTIVE RATE STEPS.
C42: (2) REFLECTS NORMALIZED VOLUMES.
C43: ="(3) REFLECTS AVERAGE EXPECTED GAS COST OF "&TEXT(EGC,"$0.000")&"/MCF." -> (3) REFLECTS AVERAGE EXPECTED GAS COST OF $4.014/MCF. | T43: =COMPANY -> DUKE ENERGY KENTUCKY
T44: =CASE -> CASE NO. 2018- 00261
T45: ANNUALIZED TEST YEAR REVENUES AT PROPOSED VS. MOST CURRENT RATES
T46: =TIME_PERIOD -> FOR THE TWELVE MONTHS ENDED MARCH 31, 2020
T47: =SERV_TYPE -> (GAS SERVICE)
T48: =DATA_TYPE -> DATA: ___ BASE PERIOD _X_FORECASTED PERIOD | AN48: SCHEDULE M-2.2
T49: =FILING_TYPE -> TYPE OF FILING: _X_ ORIGINAL ___UPDATED ___ REVISED | AN49: =R7 -> PAGE 3 OF 7
T50: WORK PAPER REFERENCE NO(S).: | AN50: WITNESS:
T51: =TIME -> 12 MONTHS FORECASTED | AN51: =WIT -> B. L. Sailers
AD52: CURRENT ANNUALIZED
AD54: CURRENT | AF54: % OF REV TO | AH54: REVENUE | AJ54: % INCR IN | AN54: CURRENT | AP54: TOTAL
AB55: MOST | AD55: REVENUE LESS | AF55: TOTAL LESS | AH55: INCR LESS | AJ55: REV LESS | AN55: TOTAL | AP55: REVENUE
T56: LINE | V56: RATE | W56: CLASS / | X56: CUSTOMER | AB56: CURRENT | AD56: GAS COST | AF56: GAS COST | AH56: GAS COST REV | AJ56: GAS COST REV | AL56: GAS COST | AN56: REVENUE | AP56: % INCREASE
T57: NO. | V57: CODE | W57: DESCRIPTION | X57: BILLS(1) | Z57: SALES(2) | AB57: RATES | AD57: REVENUE | AF57: REVENUE | AH57: (F - K) | AJ57: (M / K) | AL57: REVENUE(3) | AN57: (K + H) | AP57: (M / K1)
V58: (A) | W58: (B) | X58: (C) | Z58: (D) | AB58: (J) | AD58: (K) | AF58: (L) | AH58: (M) | AJ58: (N) | AL58: (H) | AN58: (K1) | AP58: (O)
Z60: (MCF) | AB60: ($/MCF) | AD60: ($) | AF60: (%) | AH60: ($) | AJ60: (%) | AL60: ($) | AN60: ($) | AP60: (%)
T61: 1 | V61: GS | W61: COMMERCIAL
T63: 2 | V63: CUSTOMER CHARGE:
T64: 3 | V64: NON-RESIDENTIAL
T65: 4 | V65: TOTAL MONTHLY BILLS x :
T66: 5 | V66: CUSTOMER CHARGE PER MONTH | X66: =F24 -> 78250 | AB66: 47.5 | AD66: =ROUND(X66*AB66,0) -> 3716875 | AF66: =ROUND((AD66/$AD$81)*100,1) -> 40.2 | AH66: =L24-AD66 -> 195625 | AJ66: =IF(AD66=0,"0.0 ",ROUND((AH66/AD66)*100,1)) -> 5.3 | AN66: =AD66+AL66 -> 3716875 | AP66: =IF(AN66=0,"0.0 ",ROUND((AH66/AN66)*100,1)) -> 5.3
T68: 6 | V68: COMMODITY CHARGE:
T69: 7 | V69: ALL CONSUMPTION | Z69: =H27 -> 2630680 | AB69: 2.053 | AD69: =ROUND((Z69*AB69),0) -> 5400786 | AF69: =ROUND((AD69/$AD$81)*100,1) -> 58.3 | AH69: =L27-AD69 -> 1985374 | AJ69: =IF(AD69=0,"0.0 ",ROUND((AH69/AD69)*100,1)) -> 36.8 | AL69: =P27 -> 10560339 | AN69: =AD69+AL69 -> 15961125 | AP69: =IF(AN69=0,"0.0 ",ROUND((AH69/AN69)*100,1)) -> 12.4
T71: 8 | V71: RATE GS COMMERCIAL EXCLUDING RIDERS | X71: =X66 -> 78250 | Z71: =Z69 -> 2630680 | AD71: =SUM(AD66:AD69) -> 9117661 | AF71: =ROUND((AD71/$AD$81)*100,1) -> 98.5 | AH71: =SUM(AH66:AH69) -> 2180999 | AJ71: =IF(AD71=0,"0.0 ",ROUND((AH71/AD71)*100,1)) -> 23.9 | AL71: =SUM(AL66:AL69) -> 10560339 | AN71: =SUM(AN66:AN69) -> 19678000 | AP71: =IF(AN71=0,"0.0 ",ROUND((AH71/AN71)*100,1)) -> 11.1
T73: 9 | V73: RIDERS:
T74: 10 | V74: =C32 -> DEMAND SIDE MANAGEMENT RATE (DSMR) | AB74: =CUR_GS_DSM -> 0 | AD74: =ROUND(Z69*AB74,0) -> 0 | AF74: =ROUND((AD74/$AD$81)*100,1) -> 0 | AH74: =L32-AD74 -> 0 | AJ74: =IF(AD74=0,"0.0 ",ROUND((AH74/AD74)*100,1)) -> 0.0 | AN74: =AD74+AL74 -> 0 | AP74: =IF(AN74=0,"0.0 ",ROUND((AH74/AN74)*100,1)) -> 0.0
T76: =A34 -> 11 | V76: WEATHER NORMALIZATION ADJUSTMENT (WNA) | AB76: 0 | AD76: =ROUND(Z71*AB76,0) -> 0 | AF76: =ROUND((AD76/$AD$81)*100,1) -> 0 | AH76: =L34-AD76 -> 0 | AJ76: =IF(AD76=0,"0.0 ",ROUND((AH76/AD76)*100,1)) -> 0.0 | AN76: =AD76+AL76 -> 0 | AP76: =IF(AN76=0,"0.0 ",ROUND((AH76/AN76)*100,1)) -> 0.0
T77: =A35 -> 12 | V77: =C35 -> ACCELERATED SERVICE REPLACEMENT PROGRAM (ASRP) | AB77: =CUR_ASRP_GS -> 1.78 | AD77: =ROUND(X66*AB77,0) -> 139285 | AF77: =ROUND((AD77/$AD$81)*100,1) -> 1.5 | AH77: =L35-AD77 -> -139285 | AJ77: =IF(AD77=0,"0.0 ",ROUND((AH77/AD77)*100,1)) -> -100 | AN77: =AD77+AL77 -> 139285 | AP77: =IF(AN77=0,"0.0 ",ROUND((AH77/AN77)*100,1)) -> -100
T79: =A37 -> 13 | V79: TOTAL RIDERS | AD79: =SUM(AD73:AD77) -> 139285 | AF79: =ROUND((AD79/$AD$81)*100,1) -> 1.5 | AH79: =SUM(AH73:AH77) -> -139285 | AJ79: =IF(AD79=0,"0.0 ",ROUND((AH79/AD79)*100,1)) -> -100 | AN79: =SUM(AN73:AN77) -> 139285 | AP79: =IF(AN79=0,"0.0 ",ROUND((AH79/AN79)*100,1)) -> -100
T81: =A39 -> 14 | V81: TOTAL RATE GS COMMERCIAL INCLUDING RIDERS | X81: =X66 -> 78250 | Z81: =Z69 -> 2630680 | AD81: =AD71+AD79 -> 9256946 | AF81: =AF71+AF79 -> 100 | AH81: =AH71+AH79 -> 2041714 | AJ81: =IF(AD81=0,"0.0 ",ROUND((AH81/AD81)*100,1)) -> 22.1 | AL81: =P39 -> 10560339 | AN81: =AN71+AN79 -> 19817285 | AP81: =IF(AN81=0,"0.0 ",ROUND((AH81/AN81)*100,1)) -> 10.3
V83: (1) BILLS THAT TERMINATE IN RESPECTIVE RATE STEPS.
V84: (2) REFLECTS NORMALIZED VOLUMES.
V85: ="(3) REFLECTS AVERAGE EXPECTED GAS COST OF "&TEXT(EGC,"$0.000")&"/MCF." -> (3) REFLECTS AVERAGE EXPECTED GAS COST OF $4.014/MCF.
Z202: *** MENU ***
X204: ROUTINE | AD204: ENTER
X205: - | AD205: -
W206: PRINT SCHEDULES E-4 and E-4.1 | AD206: ALT A
W208: PRINT SCHEDULE E-5 | AD208: ALT B
W210: SAVE FILE | X210: (NOTE: MUST USE WHEN SAVING FILE) | AD210: ALT S
W212: GO TO MENU | AD212: ALT M
W214: RANGE NAME INDEX | AD214: ALT I

Sheet Rate GS IND
A1: =COMPANY -> DUKE ENERGY KENTUCKY
A2: =CASE -> CASE NO. 2018- 00261
A3: ANNUALIZED REVENUES AT PROPOSED VS. MOST CURRENT RATES
A4: =TIME_PERIOD -> FOR THE TWELVE MONTHS ENDED MARCH 31, 2020
A5: =SERV_TYPE -> (GAS SERVICE)
A6: =DATA_TYPE -> DATA: ___ BASE PERIOD _X_FORECASTED PERIOD | R6: SCHEDULE M-2.3
A7: =FILING_TYPE -> TYPE OF FILING: _X_ ORIGINAL ___UPDATED ___ REVISED | R7: PAGE 4 OF 7
A8: WORK PAPER REFERENCE NO(S).: | R8: WITNESS:
A9: =TIME -> 12 MONTHS FORECASTED | R9: =WIT -> B. L. Sailers
A10: PROPOSED ANNUALIZED
L12: PROPOSED | N12: % OF REV TO | R12: PROPOSED
L13: REVENUE LESS | N13: TOTAL LESS | R13: TOTAL
A14: LINE | C14: RATE | D14: CLASS / | F14: CUSTOMER | J14: PROPOSED | L14: GAS COST | N14: GAS COST | P14: GAS COST | R14: REVENUE
A15: NO. | C15: CODE | D15: DESCRIPTION | F15: BILLS(1) | H15: SALES(2) | J15: RATES | L15: REVENUE | N15: REVENUE | P15: REVENUE(3) | R15: (F + H)
C16: (A) | D16: (B) | F16: (C) | H16: (D) | J16: (E) | L16: (F) | N16: (G) | P16: (H) | R16: (I)
H18: (MCF) | J18: ($/MCF) | L18: ($) | N18: (%) | P18: ($) | R18: ($)
A19: 1 | C19: GS | D19: INDUSTRIAL
A21: 2 | C21: CUSTOMER CHARGE:
A22: 3 | C22: NON-RESIDENTIAL
A23: 4 | C23: TOTAL MONTHLY BILLS x :
A24: 5 | C24: CUSTOMER CHARGE PER MONTH | F24: 2513 | J24: =PRO_GS_CUST -> 50 | L24: =ROUND(F24*J24,0) -> 125650 | N24: =ROUND((L24/$L$39)*100,1) -> 20.7 | R24: =L24+P24 -> 125650
A26: 6 | C26: COMMODITY CHARGE:
A27: 7 | C27: ALL CONSUMPTION | H27: 171720 | J27: =PRO_GS -> 2.8077 | L27: =ROUND((H27*J27),0) -> 482138 | N27: =ROUND((L27/$L$39)*100,1) -> 79.3 | P27: =ROUND(EGC*$H27,0) -> 689336 | R27: =L27+P27 -> 1171474
A29: 8 | C29: RATE GS INDUSTRIAL EXCLUDING RIDERS | F29: =F24 -> 2513 | H29: =H27 -> 171720 | L29: =SUM(L24:L27) -> 607788 | N29: =ROUND((L29/$L$39)*100,1) -> 100 | P29: =SUM(P24:P27) -> 689336 | R29: =SUM(R24:R27) -> 1297124
A31: 9 | C31: RIDERS:
A32: 10 | C32: DEMAND SIDE MANAGEMENT RATE (DSMR) | J32: =PRO_GS_DSM -> 0 | L32: =ROUND(H27*J32,0) -> 0 | N32: =ROUND((L32/$L$39)*100,1) -> 0 | R32: =L32+P32 -> 0
A34: 11 | C34: WEATHER NORMALIZATION ADJUSTMENT (WNA) | J34: 0 | L34: =ROUND(H29*J34,0) -> 0 | N34: =ROUND((L34/$L$39)*100,1) -> 0 | R34: =L34+P34 -> 0
A35: 12 | C35: ACCELERATED SERVICE REPLACEMENT PROGRAM (ASRP) | J35: =PRO_ASRP_GS -> 0 | L35: =ROUND(F24*J35,0) -> 0 | N35: =ROUND((L35/$L$39)*100,1) -> 0 | R35: =L35+P35 -> 0
A37: 13 | C37: TOTAL RIDERS | L37: =SUM(L31:L35) -> 0 | N37: =ROUND((L37/$L$39)*100,1) -> 0 | R37: =SUM(R31:R35) -> 0
A39: 14 | C39: TOTAL RATE GS INDUSTRIAL INCLUDING RIDERS | F39: =F24 -> 2513 | H39: =H27 -> 171720 | L39: =L29+L37 -> 607788 | N39: =N29+N37 -> 100 | P39: =P29+P37 -> 689336 | R39: =R29+R37 -> 1297124
C41: (1) BILLS THAT TERMINATE IN RESPECTIVE RATE STEPS.
C42: (2) REFLECTS NORMALIZED VOLUMES.
C43: ="(3) REFLECTS AVERAGE EXPECTED GAS COST OF "&TEXT(EGC,"$0.000")&"/MCF." -> (3) REFLECTS AVERAGE EXPECTED GAS COST OF $4.014/MCF.
T48: =COMPANY -> DUKE ENERGY KENTUCKY
T49: =CASE -> CASE NO. 2018- 00261
T50: ANNUALIZED TEST YEAR REVENUES AT PROPOSED VS. MOST CURRENT RATES
T51: =TIME_PERIOD -> FOR THE TWELVE MONTHS ENDED MARCH 31, 2020
T52: =SERV_TYPE -> (GAS SERVICE)
T53: =DATA_TYPE -> DATA: ___ BASE PERIOD _X_FORECASTED PERIOD | AN53: SCHEDULE M-2.2
T54: =FILING_TYPE -> TYPE OF FILING: _X_ ORIGINAL ___UPDATED ___ REVISED | AN54: =R7 -> PAGE 4 OF 7
T55: WORK PAPER REFERENCE NO(S).: | AN55: WITNESS:
T56: =TIME -> 12 MONTHS FORECASTED | AN56: =WIT -> B. L. Sailers
T57: CURRENT ANNUALIZED
AD59: CURRENT | AF59: % OF REV TO | AH59: REVENUE | AJ59: % INCR IN | AN59: CURRENT | AP59: TOTAL
AB60: MOST | AD60: REVENUE LESS | AF60: TOTAL LESS | AH60: INCR LESS | AJ60: REV LESS | AN60: TOTAL | AP60: REVENUE
T61: LINE | V61: RATE | W61: CLASS / | X61: CUSTOMER | AB61: CURRENT | AD61: GAS COST | AF61: GAS COST | AH61: GAS COST REV | AJ61: GAS COST REV | AL61: GAS COST | AN61: REVENUE | AP61: % INCREASE
T62: NO. | V62: CODE | W62: DESCRIPTION | X62: BILLS(1) | Z62: SALES(2) | AB62: RATES | AD62: REVENUE | AF62: REVENUE | AH62: (F - K) | AJ62: (M / K) | AL62: REVENUE(3) | AN62: (K + H) | AP62: (M / K1)
V63: (A) | W63: (B) | X63: (C) | Z63: (D) | AB63: (J) | AD63: (K) | AF63: (L) | AH63: (M) | AJ63: (N) | AL63: (H) | AN63: (K1) | AP63: (O)
Z65: (MCF) | AB65: ($/MCF) | AD65: ($) | AF65: (%) | AH65: ($) | AJ65: (%) | AL65: ($) | AN65: ($) | AP65: (%)
T66: 1 | V66: GS | W66: INDUSTRIAL
T68: 2 | V68: CUSTOMER CHARGE:
T69: 3 | V69: NON-RESIDENTIAL
T70: 4 | V70: TOTAL MONTHLY BILLS x :
T71: 5 | V71: CUSTOMER CHARGE PER MONTH | X71: =F24 -> 2513 | AB71: =CUR_GS_CUST -> 47.5 | AD71: =ROUND(X71*AB71,0) -> 119368 | AF71: =ROUND((AD71/$AD$86)*100,1) -> 25.1 | AH71: =L24-AD71 -> 6282 | AJ71: =IF(AD71=0,"0.0 ",ROUND((AH71/AD71)*100,1)) -> 5.3 | AN71: =AD71+AL71 -> 119368 | AP71: =IF(AN71=0,"0.0 ",ROUND((AH71/AN71)*100,1)) -> 5.3
T73: 6 | V73: COMMODITY CHARGE:
T74: 7 | V74: ALL CONSUMPTION | Z74: =H27 -> 171720 | AB74: =CUR_GS -> 2.053 | AD74: =ROUND((Z74*AB74),0) -> 352541 | AF74: =ROUND((AD74/$AD$86)*100,1) -> 74 | AH74: =L27-AD74 -> 129597 | AJ74: =IF(AD74=0,"0.0 ",ROUND((AH74/AD74)*100,1)) -> 36.8 | AL74: =P27 -> 689336 | AN74: =AD74+AL74 -> 1041877 | AP74: =IF(AN74=0,"0.0 ",ROUND((AH74/AN74)*100,1)) -> 12.4
T76: 8 | V76: RATE GS INDUSTRIAL EXCLUDING RIDERS | X76: =X71 -> 2513 | Z76: =Z74 -> 171720 | AD76: =SUM(AD71:AD74) -> 471909 | AF76: =ROUND((AD76/$AD$86)*100,1) -> 99.1 | AH76: =SUM(AH71:AH74) -> 135879 | AJ76: =IF(AD76=0,"0.0 ",ROUND((AH76/AD76)*100,1)) -> 28.8 | AL76: =SUM(AL71:AL74) -> 689336 | AN76: =SUM(AN71:AN74) -> 1161245 | AP76: =IF(AN76=0,"0.0 ",ROUND((AH76/AN76)*100,1)) -> 11.7
T78: 9 | V78: RIDERS:
T79: 10 | V79: =C39 -> TOTAL RATE GS INDUSTRIAL INCLUDING RIDERS | AB79: =CUR_GS_DSM -> 0 | AD79: =ROUND(Z74*AB79,0) -> 0 | AF79: =ROUND((AD79/$AD$86)*100,1) -> 0 | AH79: =L32-AD79 -> 0 | AJ79: =IF(AD79=0,"0.0 ",ROUND((AH79/AD79)*100,1)) -> 0.0 | AN79: =AD79+AL79 -> 0 | AP79: =IF(AN79=0,"0.0 ",ROUND((AH79/AN79)*100,1)) -> 0.0
T81: =A34 -> 11 | V81: WEATHER NORMALIZATION ADJUSTMENT (WNA) | AB81: 0 | AD81: =ROUND(Z76*AB81,0) -> 0 | AF81: =ROUND((AD81/$AD$86)*100,1) -> 0 | AH81: =L34-AD81 -> 0 | AJ81: =IF(AD81=0,"0.0 ",ROUND((AH81/AD81)*100,1)) -> 0.0 | AN81: =AD81+AL81 -> 0 | AP81: =IF(AN81=0,"0.0 ",ROUND((AH81/AN81)*100,1)) -> 0.0
T82: =A35 -> 12 | V82: =C35 -> ACCELERATED SERVICE REPLACEMENT PROGRAM (ASRP) | AB82: =CUR_ASRP_GS -> 1.78 | AD82: =ROUND(X71*AB82,0) -> 4473 | AF82: =ROUND((AD82/$AD$86)*100,1) -> 0.9 | AH82: =L35-AD82 -> -4473 | AJ82: =IF(AD82=0,"0.0 ",ROUND((AH82/AD82)*100,1)) -> -100 | AN82: =AD82+AL82 -> 4473 | AP82: =IF(AN82=0,"0.0 ",ROUND((AH82/AN82)*100,1)) -> -100
T84: =A37 -> 13 | V84: TOTAL RIDERS | AD84: =SUM(AD78:AD82) -> 4473 | AF84: =ROUND((AD84/$AD$86)*100,1) -> 0.9 | AH84: =SUM(AH78:AH82) -> -4473 | AJ84: =IF(AD84=0,"0.0 ",ROUND((AH84/AD84)*100,1)) -> -100 | AN84: =SUM(AN78:AN82) -> 4473 | AP84: =IF(AN84=0,"0.0 ",ROUND((AH84/AN84)*100,1)) -> -100
T86: =A39 -> 14 | V86: TOTAL RATE GS INDUSTRIAL INCLUDING RIDERS | X86: =X71 -> 2513 | Z86: =Z74 -> 171720 | AD86: =AD76+AD84 -> 476382 | AF86: =AF76+AF84 -> 100 | AH86: =AH76+AH84 -> 131406 | AJ86: =IF(AD86=0,"0.0 ",ROUND((AH86/AD86)*100,1)) -> 27.6 | AL86: =P39 -> 689336 | AN86: =AN76+AN84 -> 1165718 | AP86: =IF(AN86=0,"0.0 ",ROUND((AH86/AN86)*100,1)) -> 11.3
V88: (1) BILLS THAT TERMINATE IN RESPECTIVE RATE STEPS.
V89: (2) REFLECTS NORMALIZED VOLUMES.
V90: ="(3) REFLECTS AVERAGE EXPECTED GAS COST OF "&TEXT(EGC,"$0.000")&"/MCF." -> (3) REFLECTS AVERAGE EXPECTED GAS COST OF $4.014/MCF.

Sheet Rate GS OPA
A1: =COMPANY -> DUKE ENERGY KENTUCKY
A2: =CASE -> CASE NO. 2018- 00261
A3: ANNUALIZED REVENUES AT PROPOSED VS. MOST CURRENT RATES
A4: =TIME_PERIOD -> FOR THE TWELVE MONTHS ENDED MARCH 31, 2020
A5: =SERV_TYPE -> (GAS SERVICE)
A6: =DATA_TYPE -> DATA: ___ BASE PERIOD _X_FORECASTED PERIOD | R6: SCHEDULE M-2.3
A7: =FILING_TYPE -> TYPE OF FILING: _X_ ORIGINAL ___UPDATED ___ REVISED | R7: PAGE 5 OF 7
A8: WORK PAPER REFERENCE NO(S).: | R8: WITNESS:
A9: =TIME -> 12 MONTHS FORECASTED | R9: =WIT -> B. L. Sailers
A10: PROPOSED ANNUALIZED
L12: PROPOSED | N12: % OF REV TO | R12: PROPOSED
L13: REVENUE LESS | N13: TOTAL LESS | R13: TOTAL
A14: LINE | C14: RATE | D14: CLASS / | F14: CUSTOMER | J14: PROPOSED | L14: GAS COST | N14: GAS COST | P14: GAS COST | R14: REVENUE
A15: NO. | C15: CODE | D15: DESCRIPTION | F15: BILLS(1) | H15: SALES(2) | J15: RATES | L15: REVENUE | N15: REVENUE | P15: REVENUE(3) | R15: (F + H)
C16: (A) | D16: (B) | F16: (C) | H16: (D) | J16: (E) | L16: (F) | N16: (G) | P16: (H) | R16: (I)
H18: (MCF) | J18: ($/MCF) | L18: ($) | N18: (%) | P18: ($) | R18: ($)
A19: 1 | C19: GS | D19: OTHER PUBLIC AUTHORITIES
A21: 2 | C21: CUSTOMER CHARGE:
A22: 3 | C22: NON-RESIDENTIAL
A23: 4 | C23: TOTAL MONTHLY BILLS x :
A24: 5 | C24: CUSTOMER CHARGE PER MONTH | F24: 4482 | J24: =PRO_GS_CUST -> 50 | L24: =ROUND(F24*J24,0) -> 224100 | N24: =ROUND((L24/$L$39)*100,1) -> 19.5 | R24: =L24+P24 -> 224100
A26: 6 | C26: COMMODITY CHARGE:
A27: 7 | C27: ALL CONSUMPTION | H27: 328708 | J27: =PRO_GS -> 2.8077 | L27: =ROUND((H27*J27),0) -> 922913 | N27: =ROUND((L27/$L$39)*100,1) -> 80.5 | P27: =ROUND(EGC*$H27,0) -> 1319533 | R27: =L27+P27 -> 2242446
A29: 8 | C29: RATE GS OPA EXCLUDING RIDERS | F29: =F24 -> 4482 | H29: =H27 -> 328708 | L29: =SUM(L24:L27) -> 1147013 | N29: =ROUND((L29/$L$39)*100,1) -> 100 | P29: =SUM(P24:P27) -> 1319533 | R29: =SUM(R24:R27) -> 2466546
A31: 9 | C31: RIDERS:
A32: 10 | C32: DEMAND SIDE MANAGEMENT RATE (DSMR) | J32: =PRO_GS_DSM -> 0 | L32: =ROUND(H27*J32,0) -> 0 | N32: =ROUND((L32/$L$39)*100,1) -> 0 | R32: =L32+P32 -> 0
A34: 11 | C34: WEATHER NORMALIZATION ADJUSTMENT (WNA) | J34: 0 | L34: =ROUND(H29*J34,0) -> 0 | N34: =ROUND((L34/$L$39)*100,1) -> 0 | R34: =L34+P34 -> 0
A35: 12 | C35: ACCELERATED SERVICE REPLACEMENT PROGRAM (ASRP) | J35: =PRO_ASRP_GS -> 0 | L35: =ROUND(F24*J35,0) -> 0 | N35: =ROUND((L35/$L$39)*100,1) -> 0 | R35: =L35+P35 -> 0
A37: 13 | C37: TOTAL RIDERS | L37: =SUM(L31:L35) -> 0 | N37: =ROUND((L37/$L$39)*100,1) -> 0 | R37: =SUM(R31:R35) -> 0
A39: 14 | C39: TOTAL RATE GS OPA INCLUDING RIDERS | F39: =F24 -> 4482 | H39: =H27 -> 328708 | L39: =L29+L37 -> 1147013 | N39: =SUM(N29+N37) -> 100 | P39: =P29+P37 -> 1319533 | R39: =R29+R37 -> 2466546
C41: (1) BILLS THAT TERMINATE IN RESPECTIVE RATE STEPS.
C42: (2) REFLECTS NORMALIZED VOLUMES.
C43: ="(3) REFLECTS AVERAGE EXPECTED GAS COST OF "&TEXT(EGC,"$0.000")&"/MCF." -> (3) REFLECTS AVERAGE EXPECTED GAS COST OF $4.014/MCF.
T45: =COMPANY -> DUKE ENERGY KENTUCKY
T46: =CASE -> CASE NO. 2018- 00261
T47: ANNUALIZED TEST YEAR REVENUES AT PROPOSED VS. MOST CURRENT RATES
T48: =TIME_PERIOD -> FOR THE TWELVE MONTHS ENDED MARCH 31, 2020
T49: =SERV_TYPE -> (GAS SERVICE)
T50: =DATA_TYPE -> DATA: ___ BASE PERIOD _X_FORECASTED PERIOD | AN50: SCHEDULE M-2.2
T51: =FILING_TYPE -> TYPE OF FILING: _X_ ORIGINAL ___UPDATED ___ REVISED | AN51: =R7 -> PAGE 5 OF 7
T52: WORK PAPER REFERENCE NO(S).: | AN52: WITNESS:
T53: =TIME -> 12 MONTHS FORECASTED | AN53: =WIT -> B. L. Sailers
T54: CURRENT ANNUALIZED
AD56: CURRENT | AF56: % OF REV TO | AH56: REVENUE | AJ56: % INCR IN | AN56: CURRENT | AP56: TOTAL
AB57: MOST | AD57: REVENUE LESS | AF57: TOTAL LESS | AH57: INCR LESS | AJ57: REV LESS | AN57: TOTAL | AP57: REVENUE
T58: LINE | V58: RATE | W58: CLASS / | X58: CUSTOMER | AB58: CURRENT | AD58: GAS COST | AF58: GAS COST | AH58: GAS COST REV | AJ58: GAS COST REV | AL58: GAS COST | AN58: REVENUE | AP58: % INCREASE
T59: NO. | V59: CODE | W59: DESCRIPTION | X59: BILLS(1) | Z59: SALES(2) | AB59: RATES | AD59: REVENUE | AF59: REVENUE | AH59: (F - K) | AJ59: (M / K) | AL59: REVENUE(3) | AN59: (K + H) | AP59: (M / K1)
V60: (A) | W60: (B) | X60: (C) | Z60: (D) | AB60: (J) | AD60: (K) | AF60: (L) | AH60: (M) | AJ60: (N) | AL60: (H) | AN60: (K1) | AP60: (O)
Z62: (MCF) | AB62: ($/MCF) | AD62: ($) | AF62: (%) | AH62: ($) | AJ62: (%) | AL62: ($) | AN62: ($) | AP62: (%)
T63: 1 | V63: GS | W63: OTHER PUBLIC AUTHORITIES
T65: 2 | V65: CUSTOMER CHARGE:
T66: 3 | V66: NON-RESIDENTIAL
T67: 4 | V67: TOTAL MONTHLY BILLS x :
T68: 5 | V68: CUSTOMER CHARGE PER MONTH | X68: =F24 -> 4482 | AB68: =CUR_GS_CUST -> 47.5 | AD68: =ROUND(X68*AB68,0) -> 212895 | AF68: =ROUND((AD68/$AD$83)*100,1) -> 23.8 | AH68: =L24-AD68 -> 11205 | AJ68: =IF(AD68=0,"0.0 ",ROUND((AH68/AD68)*100,1)) -> 5.3 | AN68: =AD68+AL68 -> 212895 | AP68: =IF(AN68=0,"0.0 ",ROUND((AH68/AN68)*100,1)) -> 5.3
T70: 6 | V70: COMMODITY CHARGE:
T71: 7 | V71: ALL CONSUMPTION | Z71: =H27 -> 328708 | AB71: =CUR_GS -> 2.053 | AD71: =ROUND((Z71*AB71),0) -> 674838 | AF71: =ROUND((AD71/$AD$83)*100,1) -> 75.3 | AH71: =L27-AD71 -> 248075 | AJ71: =IF(AD71=0,"0.0 ",ROUND((AH71/AD71)*100,1)) -> 36.8 | AL71: =P27 -> 1319533 | AN71: =AD71+AL71 -> 1994371 | AP71: =IF(AN71=0,"0.0 ",ROUND((AH71/AN71)*100,1)) -> 12.4
T73: 8 | V73: RATE GS OPA EXCLUDING RIDERS | X73: =X68 -> 4482 | Z73: =Z71 -> 328708 | AD73: =SUM(AD68:AD71) -> 887733 | AF73: =ROUND((AD73/$AD$83)*100,1) -> 99.1 | AH73: =SUM(AH68:AH71) -> 259280 | AJ73: =IF(AD73=0,"0.0 ",ROUND((AH73/AD73)*100,1)) -> 29.2 | AL73: =SUM(AL68:AL71) -> 1319533 | AN73: =SUM(AN68:AN71) -> 2207266 | AP73: =IF(AN73=0,"0.0 ",ROUND((AH73/AN73)*100,1)) -> 11.7
T75: 9 | V75: RIDERS:
T76: 10 | V76: DEMAND SIDE MANAGEMENT RATE (DSMR) | AB76: =CUR_GS_DSM -> 0 | AD76: =ROUND(Z71*AB76,0) -> 0 | AF76: =ROUND((AD76/$AD$83)*100,1) -> 0 | AH76: =L32-AD76 -> 0 | AJ76: =IF(AD76=0,"0.0 ",ROUND((AH76/AD76)*100,1)) -> 0.0 | AN76: =AD76+AL76 -> 0 | AP76: =IF(AN76=0,"0.0 ",ROUND((AH76/AN76)*100,1)) -> 0.0
T78: =A34 -> 11 | V78: WEATHER NORMALIZATION ADJUSTMENT (WNA) | AB78: 0 | AD78: =ROUND(Z73*AB78,0) -> 0 | AF78: =ROUND((AD78/$AD$83)*100,1) -> 0 | AH78: =L34-AD78 -> 0 | AJ78: =IF(AD78=0,"0.0 ",ROUND((AH78/AD78)*100,1)) -> 0.0 | AN78: =AD78+AL78 -> 0 | AP78: =IF(AN78=0,"0.0 ",ROUND((AH78/AN78)*100,1)) -> 0.0
T79: =A35 -> 12 | V79: =C35 -> ACCELERATED SERVICE REPLACEMENT PROGRAM (ASRP) | AB79: =CUR_ASRP_GS -> 1.78 | AD79: =ROUND(X68*AB79,0) -> 7978 | AF79: =ROUND((AD79/$AD$83)*100,1) -> 0.9 | AH79: =L35-AD79 -> -7978 | AJ79: =IF(AD79=0,"0.0 ",ROUND((AH79/AD79)*100,1)) -> -100 | AN79: =AD79+AL79 -> 7978 | AP79: =IF(AN79=0,"0.0 ",ROUND((AH79/AN79)*100,1)) -> -100
T81: =A37 -> 13 | V81: TOTAL RIDERS | AD81: =SUM(AD75:AD79) -> 7978 | AF81: =ROUND((AD81/$AD$83)*100,1) -> 0.9 | AH81: =SUM(AH75:AH79) -> -7978 | AJ81: =IF(AD81=0,"0.0 ",ROUND((AH81/AD81)*100,1)) -> -100 | AN81: =SUM(AN75:AN79) -> 7978 | AP81: =IF(AN81=0,"0.0 ",ROUND((AH81/AN81)*100,1)) -> -100
T83: =A39 -> 14 | V83: TOTAL RATE GS OPA INCLUDING RIDERS | X83: =X68 -> 4482 | Z83: =Z71 -> 328708 | AD83: =AD73+AD81 -> 895711 | AF83: =AF73+AF81 -> 100 | AH83: =AH73+AH81 -> 251302 | AJ83: =IF(AD83=0,"0.0 ",ROUND((AH83/AD83)*100,1)) -> 28.1 | AL83: =P39 -> 1319533 | AN83: =AN73+AN81 -> 2215244 | AP83: =IF(AN83=0,"0.0 ",ROUND((AH83/AN83)*100,1)) -> 11.3
V85: (1) BILLS THAT TERMINATE IN RESPECTIVE RATE STEPS.
V86: (2) REFLECTS NORMALIZED VOLUMES.
V87: ="(3) REFLECTS AVERAGE EXPECTED GAS COST OF "&TEXT(EGC,"$0.000")&"/MCF." -> (3) REFLECTS AVERAGE EXPECTED GAS COST OF $4.014/MCF.

Sheet Rate FT-LG
A1: =COMPANY -> DUKE ENERGY KENTUCKY
A2: =CASE -> CASE NO. 2018- 00261
A3: ANNUALIZED REVENUES AT PROPOSED VS. MOST CURRENT RATES
A4: =TIME_PERIOD -> FOR THE TWELVE MONTHS ENDED MARCH 31, 2020
A5: =SERV_TYPE -> (GAS SERVICE)
A6: =DATA_TYPE -> DATA: ___ BASE PERIOD _X_FORECASTED PERIOD | R6: SCHEDULE M-2.3
A7: =FILING_TYPE -> TYPE OF FILING: _X_ ORIGINAL ___UPDATED ___ REVISED | R7: PAGE 6 OF 7
A8: WORK PAPER REFERENCE NO(S).: | R8: WITNESS:
A9: =TIME -> 12 MONTHS FORECASTED | R9: =WIT -> B. L. Sailers
A10: PROPOSED ANNUALIZED
L12: PROPOSED | N12: % OF REV TO | R12: PROPOSED
L13: REVENUE LESS | N13: TOTAL LESS | R13: TOTAL
A14: LINE | C14: RATE | D14: CLASS / | F14: CUSTOMER | J14: PROPOSED | L14: GAS COST | N14: GAS COST | P14: GAS COST | R14: REVENUE
A15: NO. | C15: CODE | D15: DESCRIPTION | F15: BILLS | H15: SALES(1) | J15: RATES | L15: REVENUE | N15: REVENUE | P15: REVENUE | R15: (F + H)
C16: (A) | D16: (B) | F16: (C) | H16: (D) | J16: (E) | L16: (F) | N16: (G) | P16: (H) | R16: (I)
H18: (MCF) | J18: ($/MCF) | L18: ($) | N18: (%) | P18: ($) | R18: ($)
A19: 1 | C19: FT - L
A20: 2 | C20: FIRM TRANSPORTATION - LARGE
A22: 3 | C22: ADMINISTRATIVE CHARGE | F22: 1128 | J22: =PRO_FTL_CUST -> 430 | L22: =ROUND((F22*J22),0) -> 485040 | N22: =ROUND((L22/L$36)*100,1) -> 7.4 | R22: =L22+P22 -> 485040
A24: 4 | C24: TRANSPORTATION CHARGE:
A25: 5 | C25: ALL CONSUMPTION | H25: 2617229 | J25: =PRO_FTL_COM -> 2.3319 | L25: =ROUND((H25*J25),0) -> 6103116 | N25: =ROUND((L25/L$36)*100,1) -> 92.6 | R25: =L25+P25 -> 6103116
A27: 6 | C27: RATE FT-LARGE EXCLUDING RIDERS | F27: =F22 -> 1128 | H27: =H25 -> 2617229 | L27: =SUM(L22:L25) -> 6588156 | N27: =SUM(N22:N25) -> 100 | R27: =SUM(R22:R25) -> 6588156
A29: 7 | C29: RIDERS:
A30: 8 | C30: ACCELERATED SERVICE REPLACEMENT PROGRAM (ASRP) | J30: =PRO_ASRP_FTL -> 0 | L30: =ROUND(H25*J30,0) -> 0 | N30: =ROUND((L30/L$36)*100,1) -> 0 | R30: =L30+P30 -> 0
A32: 9 | C32: GAS COST ADJUSTMENT TRANSITION (GCAT) | J32: =PRO_FTL_GCAT -> 0 | L32: =ROUND(H25*J32,0) -> 0 | N32: =ROUND((L32/L$36)*100,1) -> 0 | R32: =L32+P32 -> 0
A34: 10 | C34: TOTAL RIDERS | L34: =SUM(L30:L32) -> 0 | N34: =ROUND((L34/L$36)*100,1) -> 0 | R34: =SUM(R30:R32) -> 0
A36: 11 | C36: TOTAL RATE FT - LARGE INCLUDING RIDERS | F36: =F22 -> 1128 | H36: =H25 -> 2617229 | L36: =L27+L34 -> 6588156 | N36: =SUM(N27+N34) -> 100 | R36: =R27+R34 -> 6588156
C38: (1) REFLECTS NORMALIZED VOLUMES.
T40: =COMPANY -> DUKE ENERGY KENTUCKY
T41: =CASE -> CASE NO. 2018- 00261
T42: ANNUALIZED TEST YEAR REVENUES AT PROPOSED VS. MOST CURRENT RATES
T43: =TIME_PERIOD -> FOR THE TWELVE MONTHS ENDED MARCH 31, 2020
T44: =SERV_TYPE -> (GAS SERVICE)
T45: =DATA_TYPE -> DATA: ___ BASE PERIOD _X_FORECASTED PERIOD | AN45: SCHEDULE M-2.2
T46: =FILING_TYPE -> TYPE OF FILING: _X_ ORIGINAL ___UPDATED ___ REVISED | AN46: =R7 -> PAGE 6 OF 7
T47: WORK PAPER REFERENCE NO(S).: | AN47: WITNESS:
T48: =TIME -> 12 MONTHS FORECASTED | AN48: =WIT -> B. L. Sailers
T49: CURRENT ANNUALIZED
AD51: CURRENT | AF51: % OF REV TO | AH51: REVENUE | AJ51: % INCR IN | AN51: CURRENT | AP51: TOTAL
AB52: MOST | AD52: REVENUE LESS | AF52: TOTAL LESS | AH52: INCR LESS | AJ52: REV LESS | AN52: TOTAL | AP52: REVENUE
T53: LINE | V53: RATE | W53: CLASS / | X53: CUSTOMER | AB53: CURRENT | AD53: GAS COST | AF53: GAS COST | AH53: GAS COST REV | AJ53: GAS COST REV | AL53: GAS COST | AN53: REVENUE | AP53: % INCREASE
T54: NO. | V54: CODE | W54: DESCRIPTION | X54: BILLS | Z54: SALES(1) | AB54: RATES | AD54: REVENUE | AF54: REVENUE | AH54: (F - K) | AJ54: (M / K) | AL54: REVENUE | AN54: (K + H) | AP54: (M / K1)
V55: (A) | W55: (B) | X55: (C) | Z55: (D) | AB55: (J) | AD55: (K) | AF55: (L) | AH55: (M) | AJ55: (N) | AL55: (H) | AN55: (K1) | AP55: (O)
Z57: (MCF) | AB57: ($/MCF) | AD57: ($) | AF57: (%) | AH57: ($) | AJ57: (%) | AL57: ($) | AN57: ($) | AP57: (%)
T58: 1 | V58: FT - L
T59: 2 | V59: FIRM TRANSPORTATION - LARGE
T61: 3 | V61: ADMINISTRATIVE CHARGE | X61: =F22 -> 1128 | AB61: 430 | AD61: =ROUND(X61*AB61,0) -> 485040 | AF61: =IF(AD$75=0,"0.0 ",ROUND((AD61/AD$75)*100,1)) -> 9.6 | AH61: =L22-AD61 -> 0 | AJ61: =IF(AD61=0,"0.0 ",ROUND((AH61/AD61)*100,1)) -> 0 | AN61: =AD61+AL61 -> 485040 | AP61: =IF(AN61=0,"0.0 ",ROUND((AH61/AN61)*100,1)) -> 0
T63: 4 | V63: TRANSPORTATION CHARGE:
T64: 5 | V64: ALL CONSUMPTION | Z64: =H25 -> 2617229 | AB64: 1.7369 | AD64: =ROUND(Z64*AB64,0) -> 4545865 | AF64: =IF(AD$75=0,"0.0 ",ROUND((AD64/AD$75)*100,1))+0.1 -> 90.2 | AH64: =L25-AD64 -> 1557251 | AJ64: =IF(AD64=0,"0.0 ",ROUND((AH64/AD64)*100,1)) -> 34.3 | AN64: =AD64+AL64 -> 4545865 | AP64: =IF(AN64=0,"0.0 ",ROUND((AH64/AN64)*100,1)) -> 34.3
T66: 6 | V66: RATE FT-LARGE EXCLUDING RIDERS | X66: =X61 -> 1128 | Z66: =Z64 -> 2617229 | AD66: =SUM(AD61:AD64) -> 5030905 | AF66: =SUM(AF61:AF64) -> 99.8 | AH66: =SUM(AH61:AH64) -> 1557251 | AJ66: =IF(AD66=0,"0.0 ",ROUND((AH66/AD66)*100,1)) -> 31 | AN66: =SUM(AN61:AN64) -> 5030905 | AP66: =IF(AN66=0,"0.0 ",ROUND((AH66/AN66)*100,1)) -> 31
T68: 7 | V68: RIDERS:
T69: 8 | V69: =C30 -> ACCELERATED SERVICE REPLACEMENT PROGRAM (ASRP) | AB69: =CUR_ASRP_FTL -> 0.0045 | AD69: =ROUND(Z64*AB69,0) -> 11778 | AF69: =IF(AD$75=0,"0.0 ",ROUND((AD69/AD$75)*100,1)) -> 0.2 | AH69: =L30-AD69 -> -11778 | AJ69: =IF(AD69=0,"0.0 ",ROUND((AH69/AD69)*100,1)) -> -100 | AN69: =AD69+AL69 -> 11778 | AP69: =IF(AN69=0,"0.0 ",ROUND((AH69/AN69)*100,1)) -> -100
T71: 9 | V71: GAS COST ADJUSTMENT TRANSITION (GCAT) | AB71: =CUR_FTL_GCAT -> 0 | AD71: =ROUND(Z64*AB71,0) -> 0 | AF71: =IF(AD$75=0,"0.0 ",ROUND((AD71/AD$75)*100,1)) -> 0 | AH71: =L32-AD71 -> 0 | AJ71: =IF(AD71=0,"0.0 ",ROUND((AH71/AD71)*100,1)) -> 0.0 | AN71: =AD71+AL71 -> 0 | AP71: =IF(AN71=0,"0.0 ",ROUND((AH71/AN71)*100,1)) -> 0.0
T73: 10 | V73: TOTAL RIDERS | AD73: =SUM(AD69:AD71) -> 11778 | AF73: =SUM(AF69:AF71) -> 0.2 | AH73: =SUM(AH69:AH71) -> -11778 | AJ73: =IF(AD73=0,"0.0 ",ROUND((AH73/AD73)*100,1)) -> -100 | AN73: =SUM(AN69:AN71) -> 11778 | AP73: =IF(AN73=0,"0.0 ",ROUND((AH73/AN73)*100,1)) -> -100
T75: 11 | V75: TOTAL RATE FT - LARGE INCLUDING RIDERS | X75: =X61 -> 1128 | Z75: =Z64 -> 2617229 | AD75: =SUM(AD66+AD73) -> 5042683 | AF75: =SUM(AF66+AF73) -> 100 | AH75: =SUM(AH66+AH73) -> 1545473 | AJ75: =IF(AD75=0,"0.0 ",ROUND((AH75/AD75)*100,1)) -> 30.6 | AN75: =SUM(AN66+AN73) -> 5042683 | AP75: =IF(AN75=0,"0.0 ",ROUND((AH75/AN75)*100,1)) -> 30.6
V78: (1) REFLECTS NORMALIZED VOLUMES.

Sheet Rate IT
A1: =COMPANY -> DUKE ENERGY KENTUCKY
A2: =CASE -> CASE NO. 2018- 00261
A3: ANNUALIZED REVENUES AT PROPOSED VS. MOST CURRENT RATES
A4: =TIME_PERIOD -> FOR THE TWELVE MONTHS ENDED MARCH 31, 2020
A5: =SERV_TYPE -> (GAS SERVICE)
A6: =DATA_TYPE -> DATA: ___ BASE PERIOD _X_FORECASTED PERIOD | R6: SCHEDULE M-2.3
A7: =FILING_TYPE -> TYPE OF FILING: _X_ ORIGINAL ___UPDATED ___ REVISED | R7: PAGE 7 OF 7
A8: WORK PAPER REFERENCE NO(S).: | R8: WITNESS:
A9: =TIME -> 12 MONTHS FORECASTED | R9: =WIT -> B. L. Sailers
A10: PROPOSED ANNUALIZED
L12: PROPOSED | N12: % OF REV TO | R12: PROPOSED
L13: REVENUE LESS | N13: TOTAL LESS | R13: TOTAL
A14: LINE | C14: RATE | D14: CLASS / | F14: CUSTOMER | J14: PROPOSED | L14: GAS COST | N14: GAS COST | P14: GAS COST | R14: REVENUE
A15: NO. | C15: CODE | D15: DESCRIPTION | F15: BILLS | H15: SALES | J15: RATES | L15: REVENUE | N15: REVENUE | P15: REVENUE | R15: (F + H)
C16: (A) | D16: (B) | F16: (C) | H16: (D) | J16: (E) | L16: (F) | N16: (G) | P16: (H) | R16: (I)
H18: (MCF) | J18: ($/MCF) | L18: ($) | N18: (%) | P18: ($) | R18: ($)
A19: 1 | C19: IT
A20: 2 | C20: INTERRUPTIBLE TRANSPORTATION
A22: 3 | C22: ADMINISTRATIVE CHARGE | F22: 264 | J22: =PRO_IT_CUST -> 430 | L22: =ROUND((F22*J22),0) -> 113520 | N22: =ROUND((L22/L$35)*100,1) -> 6.9 | R22: =L22+P22 -> 113520
A24: 4 | C24: COMMODITY CHARGE:
A25: 5 | C25: ALL CONSUMPTION | H25: 1479992 | J25: =PRO_IT_COM -> 1.0369 | L25: =ROUND((H25*(J25)),0) -> 1534604 | N25: =ROUND((L25/L$35)*100,1) -> 93.1 | R25: =L25+P25 -> 1534604
A27: 6 | C27: RATE IT EXCLUDING RIDERS | F27: =F22 -> 264 | H27: =H25 -> 1479992 | L27: =SUM(L22:L25) -> 1648124 | N27: =SUM(N22:N25) -> 100 | R27: =SUM(R22:R25) -> 1648124
A29: 7 | C29: RIDERS:
A31: 8 | C31: ACCELERATED SERVICE REPLACEMENT PROGRAM (ASRP) | J31: =PRO_ASRP_IT -> 0 | L31: =ROUND(H25*J31,0) -> 0 | N31: =ROUND((L31/L$35)*100,1) -> 0 | R31: =L31+P31 -> 0
A33: 9 | C33: TOTAL RIDERS | L33: =SUM(L29:L31) -> 0 | N33: =ROUND((L33/L$35)*100,1) -> 0 | R33: =SUM(R29:R31) -> 0
A35: 10 | C35: TOTAL RATE IT TRANSPORTATION | F35: =F27 -> 264 | H35: =H27 -> 1479992 | L35: =L27+L33 -> 1648124 | N35: =ROUND((L35/L$35)*100,1) -> 100 | R35: =R27+R33 -> 1648124
T42: =COMPANY -> DUKE ENERGY KENTUCKY
T43: =CASE -> CASE NO. 2018- 00261
T44: ANNUALIZED TEST YEAR REVENUES AT PROPOSED VS. MOST CURRENT RATES
T45: =TIME_PERIOD -> FOR THE TWELVE MONTHS ENDED MARCH 31, 2020
T46: =SERV_TYPE -> (GAS SERVICE)
T47: =DATA_TYPE -> DATA: ___ BASE PERIOD _X_FORECASTED PERIOD | AN47: SCHEDULE M-2.2
T48: =FILING_TYPE -> TYPE OF FILING: _X_ ORIGINAL ___UPDATED ___ REVISED | AN48: =R7 -> PAGE 7 OF 7
T49: WORK PAPER REFERENCE NO(S).: | AN49: WITNESS:
T50: =TIME -> 12 MONTHS FORECASTED | AN50: =WIT -> B. L. Sailers
T51: CURRENT ANNUALIZED
AD53: CURRENT | AF53: % OF REV TO | AH53: REVENUE | AJ53: % INCR IN | AN53: CURRENT | AP53: TOTAL
AB54: MOST | AD54: REVENUE LESS | AF54: TOTAL LESS | AH54: INCR LESS | AJ54: REV LESS | AN54: TOTAL | AP54: REVENUE
T55: LINE | V55: RATE | W55: CLASS / | X55: CUSTOMER | AB55: CURRENT | AD55: GAS COST | AF55: GAS COST | AH55: GAS COST REV | AJ55: GAS COST REV | AL55: GAS COST | AN55: REVENUE | AP55: % INCREASE
T56: NO. | V56: CODE | W56: DESCRIPTION | X56: BILLS | Z56: SALES | AB56: RATES | AD56: REVENUE(3) | AF56: REVENUE | AH56: (F - K) | AJ56: (M / K) | AL56: REVENUE | AN56: (K + H) | AP56: (M / K1)
V57: (A) | W57: (B) | X57: (C) | Z57: (D) | AB57: (J) | AD57: (K) | AF57: (L) | AH57: (M) | AJ57: (N) | AL57: (H) | AN57: (K1) | AP57: (O)
Z59: (MCF) | AB59: ($/MCF) | AD59: ($) | AF59: (%) | AH59: ($) | AJ59: (%) | AL59: ($) | AN59: ($) | AP59: (%)
T60: 1 | V60: RATE IT
T61: 2 | V61: INTERRUPTIBLE TRANSPORTATION
T63: 3 | V63: ADMINISTRATIVE CHARGE | X63: =F22 -> 264 | AB63: 430 | AD63: =ROUND(X63*AB63,0) -> 113520 | AF63: =ROUND((AD63/AD$76)*100,1) -> 7.4 | AH63: =L22-AD63 -> 0 | AJ63: =IF(AD63=0,"0.0 ",ROUND((AH63/AD63)*100,1)) -> 0 | AN63: =AD63+AL63 -> 113520 | AP63: =IF(AN63=0,"0.0 ",ROUND((AH63/AN63)*100,1)) -> 0
T65: 4 | V65: COMMODITY CHARGE:
T66: 5 | V66: ALL CONSUMPTION | Z66: =H25 -> 1479992 | AB66: 0.9493 | AD66: =ROUND(Z66*AB66,0) -> 1404956 | AF66: =ROUND((AD66/AD$76)*100,1) -> 92.2 | AH66: =L25-AD66 -> 129648 | AJ66: =IF(AD66=0,"0.0 ",ROUND((AH66/AD66)*100,1)) -> 9.2 | AN66: =AD66+AL66 -> 1404956 | AP66: =IF(AN66=0,"0.0 ",ROUND((AH66/AN66)*100,1)) -> 9.2
T68: 6 | V68: RATE IT EXCLUDING RIDERS | X68: =X63 -> 264 | Z68: =Z66 -> 1479992 | AD68: =SUM(AD63:AD66) -> 1518476 | AF68: =SUM(AF63:AF66) -> 99.6 | AH68: =L27-AD68 -> 129648 | AJ68: =IF(AD68=0,"0.0 ",ROUND((AH68/AD68)*100,1)) -> 8.5 | AN68: =SUM(AN63:AN66) -> 1518476 | AP68: =IF(AN68=0,"0.0 ",ROUND((AH68/AN68)*100,1)) -> 8.5
T70: 7 | V70: RIDERS:
T72: 8 | V72: ACCELERATED SERVICE REPLACEMENT PROGRAM (ASRP) | AB72: =CUR_ASRP_IT -> 0.0039 | AD72: =ROUND(Z66*AB72,0) -> 5772 | AF72: =ROUND((AD72/AD$76)*100,1) -> 0.4 | AH72: =L31-AD72 -> -5772 | AJ72: =IF(AD72=0,"0.0 ",ROUND((AH72/AD72)*100,1)) -> -100 | AN72: =AD72+AL72 -> 5772 | AP72: =IF(AN72=0,"0.0 ",ROUND((AH72/AN72)*100,1)) -> -100
T74: 9 | V74: TOTAL RIDERS | AD74: =SUM(AD70:AD72) -> 5772 | AF74: =ROUND((AD74/AD$76)*100,1) -> 0.4 | AH74: =L33-AD74 -> -5772 | AJ74: =IF(AD74=0,"0.0 ",ROUND((AH74/AD74)*100,1)) -> -100 | AN74: =SUM(AN70:AN72) -> 5772 | AP74: =IF(AN74=0,"0.0 ",ROUND((AH74/AN74)*100,1)) -> -100
T76: 10 | V76: TOTAL RATE IT TRANSPORTATION | X76: =X68 -> 264 | Z76: =Z68 -> 1479992 | AD76: =AD68+AD74 -> 1524248 | AF76: =ROUND((AD76/AD$76)*100,1) -> 100 | AH76: =AH68+AH74 -> 123876 | AJ76: =IF(AD76=0,"0.0 ",ROUND((AH76/AD76)*100,1)) -> 8.1 | AN76: =AN68+AN74 -> 1524248 | AP76: =IF(AN76=0,"0.0 ",ROUND((AH76/AN76)*100,1)) -> 8.1

Sheet SCH N
A1: =COMPANY -> DUKE ENERGY KENTUCKY
A2: =CASE -> CASE NO. 2018- 00261
A3: EFFECTS OF PROPOSED RESIDENTIAL AND GENERAL SERVICE RATES
A4: TYPICAL BILL COMPARISON
A5: =SERV_TYPE -> (GAS SERVICE)
A7: =DATA_TYPE -> DATA: ___ BASE PERIOD _X_FORECASTED PERIOD | M7: SCHEDULE N
A8: =FILING_TYPE -> TYPE OF FILING: _X_ ORIGINAL ___UPDATED ___ REVISED | M8: PAGE 1 OF 2
A9: WORK PAPER REFERENCE NO(S).: | M9: WITNESS:
A10: =TIME -> 12 MONTHS FORECASTED | M10: =WIT -> B. L. Sailers
F13: BILL DATA INCLUDING RIDERS LESS COST of GAS (1)(2) | L13: TOTAL | M13: TOTAL
D14: LEVEL | E14: LEVEL | H14: DOLLAR | I14: PERCENT | L14: CURRENT | M14: PROPOSED | N14: PERCENT
D15: of | E15: of | F15: CURRENT | G15: PROPOSED | H15: INCREASE | I15: INCREASE | K15: GAS | L15: BILL | M15: BILL | N15: INCREASE
A16: LINE | C16: RATE | D16: DEMAND | E16: USE | F16: BILL | G16: BILL | H16: (D - C) | I16: (E / C) | K16: COST (3) | L16: (C + G) | M16: (D + G) | N16: (I-H) /H
A17: NO. | C17: CODE | D17: (A) | E17: (B) | F17: (C) | G17: (D) | H17: (E) | I17: (F) | K17: (G) | L17: (H) | M17: (I) | N17: (L)
E18: (MCF) | F18: ($) | G18: ($) | H18: ($) | I18: (%) | K18: ($) | L18: ($) | M18: ($) | N18: (%)
A19: 1 | C19: (RS)
A20: 2 | C20: RESIDENTIAL | D20: Not | E20: 1 | F20: =ROUND(E20*(CUR_RS+CUR_RS_DSM)+CUR_RS_CUST+CUR_RS_HEA+CUR_ASRP_RS,2) -> 21.22 | G20: =ROUND(E20*(PRO_RS_COM+PRO_RS_DSM)+PRO_RS_CUST+PRO_RS_HEA+PRO_ASRP_RS,2) -> 22.07 | H20: =G20-F20 -> 0.85 | I20: =ROUND(H20/F20,3)*100 -> 4 | K20: =ROUND(E20*EGC,2) -> 4.01 | L20: =F20+K20 -> 25.23 | M20: =G20+K20 -> 26.08 | N20: =ROUND((M20-L20)/L20,3)*100 -> 3.4
A21: 3 | D21: Applicable | E21: 3 | F21: 27.87 | G21: =ROUND(E21*(PRO_RS_COM+PRO_RS_DSM)+PRO_RS_CUST+PRO_RS_HEA+PRO_ASRP_RS,2) -> 31.01 | H21: 3.14 | I21: 11.3 | K21: 12.04 | L21: =F21+K21 -> 39.91 | M21: =G21+K21 -> 43.05 | N21: =ROUND((M21-L21)/L21,3)*100 -> 7.9
A22: 4 | E22: 6 | F22: 37.84 | G22: 44.42 | H22: 6.58 | I22: 17.4 | K22: 24.09 | L22: 61.93 | M22: 68.51 | N22: 10.6
A23: 5 | E23: 8 | F23: 44.49 | G23: 53.36 | H23: 8.87 | I23: 19.9 | K23: 32.11 | L23: 76.6 | M23: 85.47 | N23: 11.6
A24: 6 | E24: 10 | F24: 51.13 | G24: 62.3 | H24: 11.17 | I24: 21.8 | K24: 40.14 | L24: 91.27 | M24: 102.44 | N24: 12.2
A25: 7 | E25: 12 | F25: 57.78 | G25: 71.24 | H25: 13.46 | I25: 23.3 | K25: 48.17 | L25: 105.95 | M25: 119.41 | N25: 12.7
A26: 8 | E26: 16 | F26: 71.07 | G26: 89.12 | H26: 18.05 | I26: 25.4 | K26: 64.23 | L26: 135.3 | M26: 153.35 | N26: 13.3
A27: 9 | E27: 20 | F27: 84.37 | G27: 107 | H27: 22.63 | I27: 26.8 | K27: 80.29 | L27: 164.66 | M27: 187.29 | N27: 13.7
A28: 10 | E28: 30 | F28: 117.6 | G28: 151.69 | H28: 34.09 | I28: 29 | K28: 120.43 | L28: 238.03 | M28: 272.12 | N28: 14.3
A29: 11 | E29: 40 | F29: 150.84 | G29: 196.39 | H29: 45.55 | I29: 30.2 | K29: 160.57 | L29: 311.41 | M29: 356.96 | N29: 14.6
A30: 12 | E30: 50 | F30: 184.07 | G30: 241.09 | H30: 57.02 | I30: 31 | K30: 200.72 | L30: 384.79 | M30: 441.81 | N30: 14.8
A31: 13 | E31: 60 | F31: 217.3 | G31: 285.79 | H31: 68.49 | I31: 31.5 | K31: 240.86 | L31: 458.16 | M31: 526.65 | N31: 14.9
A32: 14 | E32: 80 | F32: 283.77 | G32: 375.18 | H32: 91.41 | I32: 32.2 | K32: 321.14 | L32: 604.91 | M32: 696.32 | N32: 15.1
A33: 15 | E33: 100 | F33: 350.24 | G33: 464.58 | H33: 114.34 | I33: 32.6 | K33: 401.43 | L33: 751.67 | M33: 866.01 | N33: 15.2
A35: 16 | C35: (GS)
A36: 17 | C36: NON-RESIDENTIAL | E36: 5 | F36: =ROUND(E36*(CUR_GS)+CUR_GS_CUST+CUR_ASRP_GS,2) -> 59.55 | G36: =ROUND(E36*(+PRO_GS)+PRO_GS_CUST+PRO_ASRP_GS,2) -> 64.04 | H36: =G36-F36 -> 4.49 | I36: =ROUND(H36/F36,3)*100 -> 7.5 | K36: =ROUND(E36*EGC,2) -> 20.07 | L36: =F36+K36 -> 79.62 | M36: =G36+K36 -> 84.11 | N36: =ROUND((M36-L36)/L36,3)*100 -> 5.6
A37: 18 | E37: 10 | F37: 69.81 | G37: 78.08 | H37: 8.27 | I37: 11.8 | K37: 40.14 | L37: 109.95 | M37: 118.22 | N37: 7.5
A38: 19 | E38: 20 | F38: 90.34 | G38: 106.15 | H38: 15.81 | I38: 17.5 | K38: 80.29 | L38: 170.63 | M38: 186.44 | N38: 9.3
A39: 20 | E39: 40 | F39: 131.4 | G39: 162.31 | H39: 30.91 | I39: 23.5 | K39: 160.57 | L39: 291.97 | M39: 322.88 | N39: 10.6
A40: 21 | E40: 50 | F40: 151.93 | G40: 190.39 | H40: 38.46 | I40: 25.3 | K40: 200.72 | L40: 352.65 | M40: 391.11 | N40: 10.9
A41: 22 | E41: 100 | F41: 254.58 | G41: 330.77 | H41: 76.19 | I41: 29.9 | K41: 401.43 | L41: 656.01 | M41: 732.2 | N41: 11.6
A42: 23 | E42: 300 | F42: 665.18 | G42: 892.31 | H42: 227.13 | I42: 34.1 | K42: 1204.29 | L42: 1869.47 | M42: 2096.6 | N42: 12.1
A43: 24 | E43: 500 | F43: 1075.78 | G43: 1453.85 | H43: 378.07 | I43: 35.1 | K43: 2007.15 | L43: 3082.93 | M43: 3461 | N43: 12.3
A44: 25 | E44: 700 | F44: 1486.38 | G44: 2015.39 | H44: 529.01 | I44: 35.6 | K44: 2810.01 | L44: 4296.39 | M44: 4825.4 | N44: 12.3
A45: 26 | E45: 850 | F45: 1794.33 | G45: 2436.55 | H45: 642.22 | I45: 35.8 | K45: 3412.16 | L45: 5206.49 | M45: 5848.71 | N45: 12.3
A46: 27 | E46: 1000 | F46: 2102.28 | G46: 2857.7 | H46: 755.42 | I46: 35.9 | K46: 4014.3 | L46: 6116.58 | M46: 6872 | N46: 12.4
A47: 28 | E47: 2000 | F47: 4155.28 | G47: 5665.4 | H47: 1510.12 | I47: 36.3 | K47: 8028.6 | L47: 12183.88 | M47: 13694 | N47: 12.4
A48: 29 | E48: 3000 | F48: 6208.28 | G48: 8473.1 | H48: 2264.82 | I48: 36.5 | K48: 12042.9 | L48: 18251.18 | M48: 20516 | N48: 12.4
C49: ="(1) INCLUDES RIDER DSM OF "&TEXT(CUR_RS_DSM,"$0.00000_);($0.00000)")&" /MCF AND HEA "&TEXT(CUR_RS_HEA,"$0.00")&" AND ASRP OF "&TEXT(CUR_ASRP_RS,"$0.00")&" IN RATE RS." -> (1) INCLUDES RIDER DSM OF ($0.39792) /MCF AND HEA $0.10 AND ASRP OF $1.80 IN RATE RS.
C50: ="(2) INCLUDES RIDER DSM OF "&TEXT(CUR_GS_DSM,"$0.00000_);($0.00000)")&" /MCF AND ASRP OF "&TEXT(CUR_ASRP_GS,"$0.00")&" IN RATE GS." -> (2) INCLUDES RIDER DSM OF $0.00000 /MCF AND ASRP OF $1.78 IN RATE GS.
C51: ="(3) REFLECTS AVERAGE EXPECTED GAS COST OF "&TEXT(EGC,"$0.000")&"/MCF." -> (3) REFLECTS AVERAGE EXPECTED GAS COST OF $4.014/MCF.
A54: =COMPANY -> DUKE ENERGY KENTUCKY
A55: =CASE -> CASE NO. 2018- 00261
A56: EFFECTS OF PROPOSED FIRM TRANSPORTATION-LARGE RATES
A57: AND INTERRUPTIBLE TRANSPORTATION RATES ON TYPICAL CUSTOMER BILLS
A58: =SERV_TYPE -> (GAS SERVICE)
A60: =DATA_TYPE -> DATA: ___ BASE PERIOD _X_FORECASTED PERIOD | P60: SCHEDULE N
A61: =FILING_TYPE -> TYPE OF FILING: _X_ ORIGINAL ___UPDATED ___ REVISED | P61: PAGE 2 OF 2
A62: WORK PAPER REFERENCE NO(S).: | P62: WITNESS:
A63: =TIME -> 12 MONTHS FORECASTED | P63: =WIT -> B. L. Sailers
F66: MONTHLY CUSTOMER CHARGE | K66: TRANSPORTATION COMMODITY CHARGE (1)(2)(3)
H67: DOLLAR | I67: PERCENT | M67: DOLLAR | N67: PERCENT | O67: TOTAL | P67: TOTAL | Q67: PERCENT
D68: LEVEL | E68: MONTHLY | F68: CURRENT | G68: PROPOSED | H68: INCREASE | I68: INCREASE | K68: CURRENT | L68: PROPOSED | M68: INCREASE | N68: INCREASE | O68: CURRENT | P68: PROPOSED | Q68: INCREASE
D69: of | E69: TRANSP | F69: MONTHLY | G69: MONTHLY | H69: (DECREASE) | I69: (DECREASE) | K69: COMMODITY | L69: COMMODITY | M69: (DECREASE) | N69: (DECREASE) | O69: BILL | P69: BILL | Q69: (DECREASE)
A70: LINE | C70: RATE | D70: DEMAND | E70: VOLUME | F70: CUST CHARGE | G70: CUST CHARGE | H70: (D - C) | I70: (E / C) | K70: CHARGE | L70: CHARGE | M70: (H - G) | N70: (I / G) | O70: (C + G) | P70: (D + H) | Q70: (L-K) / K
A71: NO. | C71: CODE | D71: (A) | E71: (B) | F71: (C) | G71: (D) | H71: (E) | I71: (F) | K71: (G) | L71: (H) | M71: (I) | N71: (J) | O71: (K) | P71: (L) | Q71: (M)
E72: (MCF) | F72: ($) | G72: ($) | H72: ($) | I72: (%) | K72: ($) | L72: ($) | M72: ($) | N72: (%) | O72: ($) | P72: ($) | Q72: (%)
A74: 1 | C74: (FT-L) | D74: Not
A75: 2 | C75: FIRM | D75: Applicable | E75: 1000 | F75: =CUR_FTL_CUST -> 430 | G75: =+PRO_FTL_CUST -> 430 | H75: =G75-F75 -> 0 | I75: =IF(F75=0,"0.0 ",ROUND(H75/F75,3)*100) -> 0 | K75: =ROUND(E75*(CUR_ASRP_FTL+CUR_FTL_COM+CUR_FTL_GCAT),2) -> 1741.4 | L75: =ROUND(E75*(PRO_ASRP_FTL+PRO_FTL_COM+PRO_FTL_GCAT),2) -> 2331.9 | M75: =L75-K75 -> 590.5 | N75: =ROUND(M75/K75,3)*100 -> 33.9 | O75: =F75+K75 -> 2171.4 | P75: =G75+L75 -> 2761.9 | Q75: =IF(P75=0,"0.0 ",ROUND((P75-O75)/O75,3)*100) -> 27.2
A76: 3 | C76: TRANSPORTATION | E76: 1500 | F76: =F75 -> 430 | G76: =G75 -> 430 | H76: 0 | I76: 0 | K76: 2612.1 | L76: 3497.85 | M76: 885.75 | N76: 33.9 | O76: =F76+K76 -> 3042.1 | P76: =G76+L76 -> 3927.85 | Q76: 29.1
A77: 4 | E77: 2000 | F77: =F75 -> 430 | G77: =G75 -> 430 | H77: 0 | I77: 0 | K77: 3482.8 | L77: 4663.8 | M77: 1181 | N77: 33.9 | O77: =F77+K77 -> 3912.8 | P77: =G77+L77 -> 5093.8 | Q77: 30.2
A78: 5 | E78: 3000 | F78: =F75 -> 430 | G78: =G75 -> 430 | H78: 0 | I78: 0 | K78: 5224.2 | L78: 6995.7 | M78: 1771.5 | N78: 33.9 | O78: 5654.2 | P78: 7425.7 | Q78: 31.3
A79: 6 | E79: 5000 | F79: =F75 -> 430 | G79: =G75 -> 430 | H79: 0 | I79: 0 | K79: 8707 | L79: 11659.5 | M79: 2952.5 | N79: 33.9 | O79: 9137 | P79: 12089.5 | Q79: 32.3
A80: 7 | E80: 10000 | F80: =F75 -> 430 | G80: =G75 -> 430 | H80: 0 | I80: 0 | K80: 17414 | L80: 23319 | M80: 5905 | N80: 33.9 | O80: 17844 | P80: 23749 | Q80: 33.1
A81: 8 | E81: 20000 | F81: =F75 -> 430 | G81: =G75 -> 430 | H81: 0 | I81: 0 | K81: 34828 | L81: 46638 | M81: 11810 | N81: 33.9 | O81: 35258 | P81: 47068 | Q81: 33.5
A82: 9 | E82: 30000 | F82: =F75 -> 430 | G82: =G75 -> 430 | H82: 0 | I82: 0 | K82: 52242 | L82: 69957 | M82: 17715 | N82: 33.9 | O82: 52672 | P82: 70387 | Q82: 33.6
A83: 10 | E83: 40000 | F83: =F75 -> 430 | G83: =G75 -> 430 | H83: 0 | I83: 0 | K83: 69656 | L83: 93276 | M83: 23620 | N83: 33.9 | O83: 70086 | P83: 93706 | Q83: 33.7
A84: 11 | E84: 50000 | F84: =F75 -> 430 | G84: =G75 -> 430 | H84: 0 | I84: 0 | K84: 87070 | L84: 116595 | M84: 29525 | N84: 33.9 | O84: 87500 | P84: 117025 | Q84: 33.7
A85: 12 | E85: 75000 | F85: =F75 -> 430 | G85: =G75 -> 430 | H85: 0 | I85: 0 | K85: 130605 | L85: 174892.5 | M85: 44287.5 | N85: 33.9 | O85: 131035 | P85: 175322.5 | Q85: 33.8
A86: 13 | E86: 100000 | F86: =F75 -> 430 | G86: =G75 -> 430 | H86: 0 | I86: 0 | K86: 174140 | L86: 233190 | M86: 59050 | N86: 33.9 | O86: 174570 | P86: 233620 | Q86: 33.8
A87: 14 | E87: 150000 | F87: =F75 -> 430 | G87: =G75 -> 430 | H87: 0 | I87: 0 | K87: 261210 | L87: 349785 | M87: 88575 | N87: 33.9 | O87: 261640 | P87: 350215 | Q87: 33.9
A88: 15 | E88: 200000 | F88: =F75 -> 430 | G88: =G75 -> 430 | H88: 0 | I88: 0 | K88: 348280 | L88: 466380 | M88: 118100 | N88: 33.9 | O88: 348710 | P88: 466810 | Q88: 33.9
A90: 16 | C90: (IT) | D90: Not
A91: 17 | C91: INTERRUPTIBLE | D91: Applicable | E91: 2000 | F91: =CUR_IT_CUST -> 430 | G91: =+PRO_IT_CUST -> 430 | H91: =G91-F91 -> 0 | I91: =IF(F91=0,"0.0 ",ROUND(H91/F91,3)*100) -> 0 | K91: =ROUND(E91*(CUR_ASRP_IT+CUR_IT_COM),2) -> 1906.4 | L91: =ROUND(E91*(PRO_ASRP_IT+PRO_IT_COM),2) -> 2073.8 | M91: =L91-K91 -> 167.4 | N91: =ROUND(M91/K91,3)*100 -> 8.8 | O91: =F91+K91 -> 2336.4 | P91: =G91+L91 -> 2503.8 | Q91: =ROUND((P91-O91)/O91,3)*100 -> 7.2
A92: 18 | C92: TRANSPORTATION | E92: 5000 | F92: =F91 -> 430 | G92: =G91 -> 430 | H92: 0 | I92: =IF(F92=0,"0.0 ",ROUND(H92/F92,3)*100) -> 0 | K92: 4766 | L92: 5184.5 | M92: 418.5 | N92: 8.8 | O92: =F92+K92 -> 5196 | P92: =G92+L92 -> 5614.5 | Q92: 8.1
A93: 19 | E93: 10000 | F93: =F91 -> 430 | G93: =G91 -> 430 | H93: 0 | I93: 0 | K93: 9532 | L93: 10369 | M93: 837 | N93: 8.8 | O93: 9962 | P93: 10799 | Q93: 8.4
A94: 20 | E94: 15000 | F94: =F91 -> 430 | G94: =G91 -> 430 | H94: 0 | I94: 0 | K94: 14298 | L94: 15553.5 | M94: 1255.5 | N94: 8.8 | O94: 14728 | P94: 15983.5 | Q94: 8.5
A95: 21 | E95: 20000 | F95: =F91 -> 430 | G95: =G91 -> 430 | H95: 0 | I95: 0 | K95: 19064 | L95: 20738 | M95: 1674 | N95: 8.8 | O95: 19494 | P95: 21168 | Q95: 8.6
A96: 22 | E96: 25000 | F96: =F91 -> 430 | G96: =G91 -> 430 | H96: 0 | I96: 0 | K96: 23830 | L96: 25922.5 | M96: 2092.5 | N96: 8.8 | O96: 24260 | P96: 26352.5 | Q96: 8.6
A97: 23 | E97: 30000 | F97: =F91 -> 430 | G97: =G91 -> 430 | H97: 0 | I97: 0 | K97: 28596 | L97: 31107 | M97: 2511 | N97: 8.8 | O97: 29026 | P97: 31537 | Q97: 8.7
A98: 24 | E98: 40000 | F98: =F91 -> 430 | G98: =G91 -> 430 | H98: 0 | I98: 0 | K98: 38128 | L98: 41476 | M98: 3348 | N98: 8.8 | O98: 38558 | P98: 41906 | Q98: 8.7
A99: 25 | E99: 50000 | F99: =F91 -> 430 | G99: =G91 -> 430 | H99: 0 | I99: 0 | K99: 47660 | L99: 51845 | M99: 4185 | N99: 8.8 | O99: 48090 | P99: 52275 | Q99: 8.7
A100: 26 | E100: 100000 | F100: =F91 -> 430 | G100: =G91 -> 430 | H100: 0 | I100: 0 | K100: 95320 | L100: 103690 | M100: 8370 | N100: 8.8 | O100: 95750 | P100: 104120 | Q100: 8.7
A101: 27 | E101: 200000 | F101: =F91 -> 430 | G101: =G91 -> 430 | H101: 0 | I101: 0 | K101: 190640 | L101: 207380 | M101: 16740 | N101: 8.8 | O101: 191070 | P101: 207810 | Q101: 8.8
A102: 28 | E102: 300000 | F102: =F91 -> 430 | G102: =G91 -> 430 | H102: 0 | I102: 0 | K102: 285960 | L102: 311070 | M102: 25110 | N102: 8.8 | O102: 286390 | P102: 311500 | Q102: 8.8
C104: ="(1) INCLUDES CURRENT RIDER GCAT OF "&TEXT(CUR_FTL_GCAT,"$0.000_);($0.000)")&"/MCF AND PROPOSED RIDER CGAT OF "&TEXT(PRO_FTL_GCAT,"$0.000_);($0.000)") &"/MCF IN RATE FT-L." -> (1) INCLUDES CURRENT RIDER GCAT OF $0.000 /MCF AND PROPOSED RIDER CGAT OF $0.000 /MCF IN RATE FT-L.
C105: ="(2) INCLUDES CURRENT RIDER ASRP OF "&TEXT(CUR_ASRP_FTL,"$0.0000_);($0.0000)")&"/MCF AND PROPOSED RIDER ASRP OF "&TEXT(PRO_ASRP_FTL,"$0.0000_);($0.0000)") &"/MCF IN RATE FT-L." -> (2) INCLUDES CURRENT RIDER ASRP OF $0.0045 /MCF AND PROPOSED RIDER ASRP OF $0.0000 /MCF IN RATE FT-L.
C106: ="(3) INCLUDES CURRENT RIDER ASRP OF "&TEXT(CUR_ASRP_IT,"$0.0000_);($0.0000)")&"/MCF AND PROPOSED RIDER ASRP OF "&TEXT(PRO_ASRP_IT,"$0.0000_);($0.0000)") &"/MCF IN RATE IT." -> (3) INCLUDES CURRENT RIDER ASRP OF $0.0039 /MCF AND PROPOSED RIDER ASRP OF $0.0000 /MCF IN RATE IT.

Sheet Revenue Requirements
A1: REVENUE REQUIREMENTS FROM COST OF SERVICE STUDY
B3: =COMPANY -> DUKE ENERGY KENTUCKY | G3: =B3 -> DUKE ENERGY KENTUCKY
B4: =CASE -> CASE NO. 2018- 00261 | G4: =B4 -> CASE NO. 2018- 00261 | M4: Comparison of Schedule M Calculated Proposed Revenues
B5: SCHEDULE M - CURRENT RATE REVENUES | G5: COST OF SERVICE STUDY | M5: Less COS Revenue Requirement
B6: No Riders - With Fuel | G6: Proposed Revenue Requirements | M6: =B4 -> CASE NO. 2018- 00261
G7: =B4 -> CASE NO. 2018- 00261
C9: Customer Bills | D9: Current Rate Revenues - No Riders - Including Fuel | G9: Rate | H9: Customer Component RRs | I9: COS - no riders - includes fuel and FAC | J9: % Change | K9: Increase | M9: Rate | N9: + value is high & - value is low
B10: RS | C10: ='Rate RS'!X67 -> 1110274 | D10: ='Rate RS'!AN83-'Rate RS'!AN75-'Rate RS'!AN76 -> 65522695 | G10: =B10 -> RS | H10: 27323239 | I10: 71971144 | J10: =(I10-D10)/D10 -> 0.09841550321 | K10: =I10-D10 -> 6448449 | M10: =G10 -> RS | N10: ='Proposed Rates'!C21 -> -21
B11: GS | C11: ='Rate GS COM'!F24+'Rate GS IND'!F24+'Rate GS OPA'!F24 -> 85245 | D11: ='Rate GS COM'!AN81+'Rate GS IND'!AN86+'Rate GS OPA'!AN83 -> 23198247 | G11: =B11 -> GS | H11: 4349513 | I11: 25622644 | J11: =(I11-D11)/D11 -> 0.1045077673 | K11: =I11-D11 -> 2424397 | M11: =G11 -> GS | N11: ='Rate GS COM'!R29+'Rate GS IND'!R29+'Rate GS OPA'!R29-'Revenue Requirements'!I11 -> 25
B14: FT-Large | C14: ='Rate FT-LG'!F22 -> 1128 | D14: ='Rate FT-LG'!AN75 -> 5042683 | G14: FT-Large | H14: 234315 | I14: 6588125 | J14: 0.3064721697 | K14: 1545442 | M14: FT-Large | N14: ='Proposed Rates'!K21 -> 31
B15: IT | C15: ='Rate IT'!F22 -> 264 | D15: ='Rate IT'!AN76 -> 1524248 | G15: IT | H15: 130843 | I15: 1648179 | J15: 0.08130632286 | K15: 123931 | M15: IT | N15: ='Proposed Rates'!O21 -> -55
M17: Total | N17: =SUM(N10:N15) -> -20
M25: SUM | N25: =SUM(N10:N23) -> -40
B28: OTHER | D28: ='SCH M-2.2'!V46 -> 94257 | G28: OTHER | I28: =D28 -> 94257 | J28: =(I28-D28)/D28 -> 0
B29: TOTAL | C29: =SUM(C10:C28) -> 1196911 | D29: =SUM(D10:D28) -> 95382130 | G29: TOTAL | H29: =SUM(H10:H28) -> 32037910 | I29: =SUM(I10:I28) -> 105924349 | J29: =(I29-D29)/D29 -> 0.1105261436 | K29: =I29-D29 -> 10542219

Sheet Proposed Rates
A1: PROPOSED RATE CALCULATIONS
B2: =COMPANY -> DUKE ENERGY KENTUCKY | F2: =COMPANY -> DUKE ENERGY KENTUCKY | J2: =COMPANY -> DUKE ENERGY KENTUCKY | N2: =COMPANY -> DUKE ENERGY KENTUCKY
B3: =CASE -> CASE NO. 2018- 00261 | F3: =CASE -> CASE NO. 2018- 00261 | J3: =CASE -> CASE NO. 2018- 00261 | N3: =CASE -> CASE NO. 2018- 00261
B4: PROPOSED RATE CALCULATION | F4: PROPOSED RATE CALCULATION | J4: PROPOSED RATE CALCULATION | N4: PROPOSED RATE CALCULATION
B5: Rate: RS | F5: Rate: GS | J5: Rate: FT-Large | N5: Rate: IT
C6: Test Period | G6: Test Period | K6: Test Period
B7: Customer Bills | C7: ='Rate RS'!F24 -> 1110274 | F7: Customer Bills | G7: ='Rate GS COM'!F24+'Rate GS IND'!F24+'Rate GS OPA'!F24 -> 85245 | J7: Customer Bills | K7: ='Rate FT-LG'!F22 -> 1128 | N7: Customer Bills | O7: ='Rate IT'!F22 -> 264
B8: COSS - RS Customer Component | C8: ='Revenue Requirements'!H10 -> 27323239 | F8: COSS - GS Customer Component | G8: ='Revenue Requirements'!H11+'Revenue Requirements'!H12+'Revenue Requirements'!H13 -> 4349513 | J8: COSS - FT-L Customer Component | K8: ='Revenue Requirements'!H14 -> 234315 | N8: COSS - IT Customer Component | O8: ='Revenue Requirements'!H15 -> 130843
B9: COSS Customer Charge | C9: =ROUND(C8/C7,2) -> 24.61 | F9: COSS Customer Charge | G9: =ROUND(G8/G7,2) -> 51.02 | J9: COSS Customer Charge | K9: =ROUND(K8/K7,2) -> 207.73 | N9: COSS Customer Charge | O9: =ROUND(O8/O7,2) -> 495.62
B10: Current Customer Charge | C10: =CUR_RS_CUST -> 16 | F10: Current Customer Charge | G10: =CUR_GS_CUST -> 47.5 | J10: Current Customer Charge | K10: =CUR_FTL_CUST -> 430 | N10: Current Customer Charge | O10: =CUR_IT_CUST -> 430
B11: Gap | C11: =C9-C10 -> 8.61 | F11: Gap | G11: =G9-G10 -> 3.52 | J11: Gap | K11: =K9-K10 -> -222.27 | N11: Gap | O11: =O9-O10 -> 65.62
B12: Migration @ % of Justified | C12: =ROUND(C11*$C$29,2) -> 4.31 | F12: Migration @ % of Justified | G12: =ROUND(G11*$C$29,2) -> 1.76 | J12: Migration @ % of Justified | K12: =ROUND(K11*$C$29,2) -> -111.14 | N12: Migration @ % of Justified | O12: =ROUND(O11*$C$29,2) -> 32.81
B13: Customer Charge at % Migration to COSS | C13: =C10+C12 -> 20.31 | F13: Customer Charge at % Migration to COSS | G13: =G10+G12 -> 49.26 | J13: Customer Charge at % Migration to COSS | K13: =K10+K12 -> 318.86 | N13: Customer Charge at % Migration to COSS | O13: =O10+O12 -> 462.81
B14: Proposed Customer Charge | C14: 17.5 | F14: Proposed Customer Charge | G14: 50 | J14: Proposed Customer Charge | K14: 430 | N14: Proposed Customer Charge | O14: 430
B15: Proposed Customer Charge Revenues | C15: ='Rate RS'!R24 -> 19429795 | F15: Proposed Customer Charge Revenues | G15: ='Rate GS COM'!R24+'Rate GS IND'!R24+'Rate GS OPA'!R24 -> 4262250 | J15: Proposed Customer Charge Revenues | K15: ='Rate FT-LG'!R22 -> 485040 | N15: Proposed Customer Charge Revenues | O15: ='Rate IT'!R22 -> 113520
B17: COSS - RS Revenue Requirement | C17: ='Revenue Requirements'!I10 -> 71971144 | F17: COSS - GS Revenue Requirement | G17: =SUM('Revenue Requirements'!I11:I13) -> 25622644 | J17: COSS - FT-L Revenue Requirement | K17: ='Revenue Requirements'!I14 -> 6588125 | N17: COSS - IT Revenue Requirement | O17: ='Revenue Requirements'!I15 -> 1648179
B18: Less Proposed Customer Charge Revenues Less GCA | C18: =C17-C15-'Rate RS'!P29 -> 28794822 | F18: Less Proposed Customer Charge Revenues Less GCA | G18: =G17-G15-'Rate GS COM'!P27-'Rate GS IND'!P27-'Rate GS OPA'!P27 -> 8791186 | J18: Less Proposed Customer Charge Revenues Less GCA/GCAT | K18: =K17-K15-'Rate FT-LG'!P25-'Rate FT-LG'!R32 -> 6103085 | N18: Less Proposed Customer Charge Revenues Less GCA | O18: =O17-O15-'Rate IT'!P25 -> 1534659
B19: Test Period MCF | C19: ='Rate RS'!H27 -> 5915484 | F19: Test Period MCF | G19: ='Rate GS COM'!H27+'Rate GS IND'!H27+'Rate GS OPA'!H27 -> 3131108 | J19: Test Period MCF | K19: ='Rate FT-LG'!H25 -> 2617229 | N19: Test Period MCF | O19: ='Rate IT'!H25 -> 1479992
B20: Proposed Delivery Charge | C20: =ROUND(C18/C19,4)+0 -> 4.8677 | F20: Proposed Energy Charge | G20: =ROUND(G18/G19,4)+0 -> 2.8077 | J20: Proposed Energy Charge | K20: =ROUND(K18/K19,4)-0 -> 2.3319 | N20: Proposed Energy Charge | O20: =ROUND(O18/O19,4)-0 -> 1.0369
B21: Check to Revenue Requirements | C21: ='Rate RS'!R29-C17 -> -21 | F21: Check to Revenue Requirements | G21: ='Rate GS COM'!R29+'Rate GS IND'!R29+'Rate GS OPA'!R29-G17 -> 25 | J21: Check to Revenue Requirements | K21: ='Rate FT-LG'!R36-K17 -> 31 | N21: Check to Revenue Requirements | O21: ='Rate IT'!R27-O17 -> -55
B29: Migration Percentage | C29: 0.5

Sheet ABI
A1: Average Bill Increase Amounts for Newspaper Notice
F2: Revenue Increases
B3: Average Bill Increase | D3: Average MCF | F3: COSS | G3: Sch M | H3: Sch M % | I3: COSS % Increase
A4: Tariff Description | B4: $ | C4: %
A5: ='Revenue Requirements'!B10 -> RS | B5: 5.78 | C5: 10.2 | D5: =ROUND('Rate RS'!H27/'Rate RS'!F24,1) -> 5.3
A6: ='Revenue Requirements'!B11 -> GS | B6: 28.41 | C6: 10.4 | D6: =ROUND(('Rate GS COM'!H27+'Rate GS OPA'!H27+'Rate GS IND'!H27)/('Rate GS COM'!F24+'Rate GS OPA'!F24+'Rate GS IND'!F24),1) -> 36.7 | F6: ='Revenue Requirements'!K11 -> 2424397
A7: GS - Commercial | B7: 26.08 | C7: 10.3 | D7: =ROUND(('Rate GS COM'!H27)/('Rate GS COM'!F24),1) -> 33.6 | F7: =F6-F8-F9 -> 2041693 | G7: ='Rate GS COM'!AH81 -> 2041714 | H7: =G7/SUM($G$7:$G$9) -> 0.8421446431 | I7: =F7/'Rate GS COM'!AN81 -> 0.1030258686
A8: GS - OPA | B8: 56.04 | C8: 11.3 | D8: =ROUND(('Rate GS OPA'!H27)/('Rate GS OPA'!F24),1) -> 73.3 | F8: =ROUND(H8*$F$6,0) -> 251299 | G8: ='Rate GS OPA'!AH83 -> 251302 | H8: =G8/SUM($G$7:$G$9) -> 0.1036543968 | I8: =F8/'Rate GS OPA'!AN83 -> 0.1134407767
A9: GS - Industrial | B9: 52.27 | C9: 11.3 | D9: =ROUND(('Rate GS IND'!H27)/('Rate GS IND'!F24),1) -> 68.3 | F9: =ROUND(H9*$F$6,0) -> 131405 | G9: ='Rate GS IND'!AH86 -> 131406 | H9: 0.05420096006 | I9: =F9/'Rate GS IND'!AN86 -> 0.1127245183
A10: ='Revenue Requirements'!B14 -> FT-Large | B10: 1370.07 | C10: 30.6 | D10: =ROUND('Rate FT-LG'!H25/'Rate FT-LG'!F22,1) -> 2320.2
A11: ='Revenue Requirements'!B15 -> IT | B11: 469.22 | C11: 8.1 | D11: =ROUND('Rate IT'!H25/'Rate IT'!F22,1) -> 5606
